Cogmind - Beta 16 @@@ ROGUE MODE // 2025.10.27 @ 11:54:40 Player: szymekc Result: Establishing 0b11! Performance ------------- Evolutions (9) 4500 Regions Visited (28) 5600 Robots Destroyed (451) 2255 Value Destroyed (26372) 26372 Prototype IDs (380) 7600 Alien Tech Used (9) 1800 Bonus (63532) 63532 TOTAL SCORE: 111659 Bonus ------- Triggered High Security 500 High Alert Combat Kills 8634 Follower Combat Kills 2807 Built PL-3XN's Obliterator 1000 Network Hubs Disabled 400 Registered with UFD 300 Met Optimus in HQ 500 Met Zhirov 300 Met Warlord at Base 500 MAIN.C Attacked Warlord 500 Warlord Defense Kills 712 Built Enhanced Grunts 300 Met R17 at Cetus 500 Found Hidden Lab 3000 Met R17 at Research 2000 Scanned by Researcher 500 Recovered Sigix Corpse 2000 Destroyed MAIN.C Guards 500 Met MAIN.C 5000 Destroyed MAIN.C Shell 5000 Destroyed MAIN.C 10000 Met Architect 300 Destroyed A8 300 Destroyed A6 400 Destroyed A5 500 Destroyed A4 700 Destroyed A3 800 Destroyed A2 1000 Destroyed Architect 15000 Win 3000 Friendly Fire -3421 Cogmind --------- Core Integrity 1305/1600 Matter 280/300 Energy 384/390 System Corruption 1% Temperature Cool (8) Movement Hovering (33) Location 0b11 Command Parts ------- > --- POWER (3) -------- Micro Antimatter Reactor Concept Zero-point Core Concept Zero-point Core > --- PROPULSION (8) --- Gravjet Array Concept Combat Aerolev Unit Concept Combat Aerolev Unit Concept Combat Aerolev Unit Concept Combat Aerolev Unit Concept Gyrokinetic System Concept Gyrokinetic System > --- UTILITY (12) ----- Experimental Power Amplifier Concept Thermoelectric Network Concept Antigrav Storage Unit Spectral Analyzer Concept Weapon Articulator Concept Core Analysis Suite Concept Core Analysis Suite Experimental Weapon Cycler Concept Reaction Jets Experimental Phase Shifter Concept Energy Mantle Concept Impact Drone Bay (3/6) > --- WEAPON (3) ------- A3's Sniper Rifle Sigix Broadsword > --- INVENTORY (25) --- Zero-point Reactor Zero-point Reactor Cooled Linear Gravjet Combat Linear Gravjet Experimental Coolant Injector Concept Chromion Battery (800) Concept Chromion Battery (800) Concept NT7 Matterbank (750) Experimental Armor Integrity Analyzer Mini Quantum Capacitor Advanced Reaction Control System Experimental Phase Shifter Concept RG22 Armor Graphene Brace Concept Energy Mantle Warp Cannon Concept Plasma Driver Concept Plasma Driver Concept Heavy Railcannon Sigix Broadsword Sigix Corpse Peak State ------------ > --- POWER ------------ Quantum Reactor Concept Zero-point Core Concept Zero-point Core > --- PROPULSION ------- Gravjet Array Concept Combat Aerolev Unit Concept Combat Aerolev Unit Concept Combat Aerolev Unit Concept Combat Aerolev Unit Concept Gyrokinetic System Concept Gyrokinetic System > --- UTILITY ---------- Experimental Coolant Injector Concept Thermoelectric Network Concept Antigrav Storage Unit Experimental Optical Array Concept Weapon Articulator Concept Core Analysis Suite Mini Quantum Capacitor Concept Reaction Jets Concept Cloak Mesh Concept Cloak Mesh Concept RG22 Armor Concept Energy Mantle > --- WEAPON ----------- Concept Plasma Driver Sigix Broadsword > --- INVENTORY -------- Improved Antigrav System Improved Antigrav System Experimental Antigrav System Concept Chromion Battery Concept Chromion Battery Concept NT7 Matterbank Deep Structural Scanner Experimental Active Sensor Suite Concept Core Analysis Suite Experimental Kinecellerator Experimental Weapon Cycler Graphene Brace Concept Energy Mantle Concept Impact Drone Bay Transdimensional Reconstructor Concept Lightning Penetrator Concept Disintegration Ray Warp Cannon Concept Plasma Driver Concept Heavy Railcannon Concept Heavy Railcannon Neutron Missile Launcher [Rating: 329] Favorites ----------- Power Light Fission Core Engine Ion Engine Power Core Light Fission Core Reactor Vortex Chain Reactor Propulsion Centrium Heavy Treads Treads Centrium Heavy Treads Leg Experimental Myomer Leg Wheel Armored Huge Wheel Hover Unit Concept Combat Aerolev Unit Utility High-capacity Storage Unit Device Experimental Transmission Jammer Storage High-capacity Storage Unit Processor Experimental Signal Interpreter Hackware Experimental Hacking Suite Protection Medium Regenerative Plating Weapon Advanced KE Penetrator Energy Gun High-powered Shock Rifle Energy Cannon Subdweller Beam Cannon Ballistic Gun Advanced KE Penetrator Ballistic Cannon Hypervelocity Mass Driver Launcher Mini Smartbomb Launcher Special Weapon Mining Laser Impact Weapon Heavy Hammer Slashing Weapon Sigix Broadsword Build | -11 -10 -10 -8 -8 -6 -6 -6 -6 -6 -5 -5 -5 -5 -4 -4 -4 -4 -4 -3 -3 -3 -3 -2 -2 -2 -1 -1 -1 ------- Run | Yrd Mat Sub Rec Scr Fac Ext Cet Arc Hub Fac Upp Upp War Pro Fac Upp Upp Zhi Pro Res Arm Lab Res Qua Frg Acc Com Ac0 Slots Evolved 18 | . . . . . 8 . . . . 2 . . . . 2 . . . . 2 . . 2 . . 2 . . Power 1 | . . . . . 1 . . . . . . . . . . . . . . . . . . . . . . . Propulsion 6 | . . . . . 2 . . . . 1 . . . . 1 . . . . . . . 1 . . 1 . . Utility 10 | . . . . . 4 . . . . 1 . . . . 1 . . . . 2 . . 1 . . 1 . . Weapon 1 | . . . . . 1 . . . . . . . . . . . . . . . . . . . . . . . Parts Attached 305 | 7 5 13 5 6 9 21 14 . 18 21 6 2 10 2 18 4 1 3 4 3 29 6 11 5 56 3 16 7 Power 44 | 1 1 2 1 . 2 4 2 . 4 3 . . 1 . . . . . . . 6 . 3 1 8 1 4 . Engine 9 | 1 1 2 . . 1 2 . . 2 . . . . . . . . . . . . . . . . . . . Core 12 | . . . 1 . 1 2 . . 2 3 . . . . . . . . . . . . . . 3 . . . Reactor 23 | . . . . . . . 2 . . . . . 1 . . . . . . . 6 . 3 1 5 1 4 . Propulsion 57 | 2 . 3 2 1 1 5 2 . 1 5 . . 3 . 5 . . 2 . 1 5 4 1 1 12 1 . . Treads 17 | 2 . 2 1 . 1 5 2 . 1 3 . . . . . . . . . . . . . . . . . . Leg 16 | . . . . . . . . . . 1 . . 2 . 5 . . 2 . 1 5 . . . . . . . Wheel 3 | . . 1 1 1 . . . . . . . . . . . . . . . . . . . . . . . . Hover 21 | . . . . . . . . . . 1 . . 1 . . . . . . . . 4 1 1 12 1 . . Flight . | . . . . . . . . . . . . . . . . . . . . . . . . . . . . . Utility 122 | 2 1 1 2 2 4 5 5 . 10 8 4 . 3 2 9 3 1 1 3 1 5 2 5 2 24 1 12 4 Device 69 | 2 . . 1 2 2 2 3 . 3 4 2 . 3 . 5 3 1 1 1 . 4 1 3 2 14 1 7 2 Storage 12 | . 1 1 . . . 1 . . 1 1 . . . . . . . . 1 1 1 . . . 3 . 1 . Processor 18 | . . . . . 1 . . . 2 1 1 . . 2 2 . . . 1 . . 1 1 . 4 . 1 1 Hackware 8 | . . . 1 . . . . . 1 . . . . . 2 . . . . . . . 1 . . . 2 1 Protection 15 | . . . . . 1 2 2 . 3 2 1 . . . . . . . . . . . . . 3 . 1 . Artifact . | . . . . . . . . . . . . . . . . . . . . . . . . . . . . . Weapon 82 | 2 3 7 . 3 2 7 5 . 3 5 2 2 3 . 4 1 . . 1 1 13 . 2 1 12 . . 3 Energy Gun 13 | . . . . . 1 5 . . . 1 . . 1 . . . . . . . 2 . . . 2 . . 1 Energy Cannon 25 | . . 4 . 2 . 1 . . 2 1 . . 1 . 2 . . . . 1 5 . . . 5 . . 1 Ballistic Gun 20 | 2 . 1 . . . . 3 . 1 1 2 2 . . . . . . . . 5 . 1 . 1 . . 1 Ballistic Cannon 8 | . 2 . . . . . . . . . . . . . 2 1 . . . . 1 . . . 2 . . . Launcher 9 | . . 1 . . 1 1 . . . 2 . . 1 . . . . . 1 . . . . . 2 . . . Special Weapon 3 | . 1 . . . . . 2 . . . . . . . . . . . . . . . . . . . . . Impact Weapon 1 | . . 1 . . . . . . . . . . . . . . . . . . . . . . . . . . Slashing Weapon 3 | . . . . 1 . . . . . . . . . . . . . . . . . . 1 1 . . . . Piercing Weapon . | . . . . . . . . . . . . . . . . . . . . . . . . . . . . . Special Melee Weapon . | . . . . . . . . . . . . . . . . . . . . . . . . . . . . . Unidentified Prototypes 59 | . . . . . . . 5 . 3 5 1 . 6 . 3 . . 3 1 . 9 2 4 2 10 . 2 3 Corrupted Parts 4 | . . . . . . . 1 . 2 . . . . . . . . . . . . . . . . . 1 . System Corruption 31 | . . . . . . . 10 . 14 . . . . . . . . . . . . . . . . . 7 . Parts Lost 21 | . . . . . . . 1 . 3 2 . . 1 . . . . . . . 3 . . . 10 . 1 . Power 3 | . . . . . . . . . . . . . . . . . . . . . . . . . 2 . 1 . Propulsion 1 | . . . . . . . . . . . . . . . . . . . . . . . . . 1 . . . Utility 13 | . . . . . . . 1 . 2 2 . . 1 . . . . . . . 2 . . . 5 . . . Weapon 4 | . . . . . . . . . 1 . . . . . . . . . . . 1 . . . 2 . . . Highest Loss Streak 8 | . . . . . . . 1 . 2 1 . . 1 . . . . . . . 1 . . . 8 . 1 . To Critical Strikes 1 | . . . . . . . . . . . . . . . . . . . . . 1 . . . . . . . Average Backups 18 | . 10 17 17 16 14 16 15 15 15 18 20 21 22 22 18 17 17 18 18 17 21 15 10 12 18 22 22 21 Power . | . 2 1 1 . . . . . . . . . . . . 1 1 1 2 1 . . . . . . . 2 Propulsion 4 | . . 5 5 4 2 1 2 3 3 5 4 4 4 9 7 7 7 7 7 7 7 1 . . 2 2 2 1 Utility 5 | . 2 5 4 4 4 4 4 5 4 5 8 9 8 6 4 5 5 6 5 3 4 4 2 3 7 11 11 12 Weapon 5 | . 5 6 6 5 4 7 6 5 4 5 5 6 6 5 5 3 3 2 2 3 7 7 6 6 6 7 6 5 Tool/Special . | . . . . . . . . . . . . . . . . . . . . . . . . . . . . . Unused Backups 65 | . 1 4 . 8 . 1 2 . 1 6 3 . 2 . 6 . 1 . . 2 5 1 2 1 6 . 2 11 Power 9 | . 1 . . 1 . . 1 . . . . . . . 4 . . . . 1 . . . . . . . 1 Propulsion 14 | . . . . 2 . . . . . 2 1 . . . 2 . . . . . 1 . 1 . 1 . 2 2 Utility 20 | . . . . 3 . 1 . . 1 1 1 . . . . . 1 . . . 1 . . 1 4 . . 6 Weapon 20 | . . 4 . 2 . . 1 . . 3 1 . . . . . . . . 1 3 1 1 . 1 . . 2 Tool/Special 2 | . . . . . . . . . . . . . 2 . . . . . . . . . . . . . . . Average Slot Usage (%) 89 | . 100 100 100 88 83 95 87 86 85 85 82 82 81 81 85 85 85 75 85 85 88 93 97 96 93 89 88 91 Engine 3 | . 14 14 8 . 2 6 2 . 5 . . . . . . . . . . . . . . . . . . . Core 4 | . . . 5 13 6 6 1 . 4 10 11 11 10 . . . . . . . . . . . 5 7 7 7 Reactor 2 | . . . . . . . 8 13 2 . . . . 5 4 4 4 4 4 4 6 8 11 12 5 2 1 3 Treads 11 | . 28 27 26 14 12 17 15 13 13 15 17 17 15 11 . . . . . . . . . . . . . . Leg 3 | . . . . . . . . . . 1 . . 1 5 19 19 19 19 19 17 17 4 . . . . . . Hover 4 | . . . . . . . . . . . . . . . . . . . . . . 19 28 29 28 25 26 26 Device 18 | . 14 14 9 14 19 20 17 13 8 13 18 17 16 18 21 23 23 23 22 26 25 21 16 16 22 31 29 29 Storage 7 | . 13 14 14 13 6 6 6 6 6 7 5 5 5 5 4 4 4 4 4 4 4 4 4 4 4 3 3 3 Processor 6 | . . . . . 5 6 6 6 8 4 3 5 5 9 12 9 9 9 11 13 13 11 15 16 11 7 10 11 Hackware 1 | . . . 4 . . . . . 1 . . . . . 1 4 4 4 4 4 4 4 4 4 . . . . Protection 3 | . . . . . 5 6 7 13 11 11 5 5 5 5 4 4 4 4 2 3 4 4 4 3 4 . . . Energy Gun 1 | . . . . . 1 18 4 . . . . . . . . . . . . . . . . . . . . . Energy Cannon 7 | . . 19 25 25 12 1 1 4 . 7 3 2 . . 4 5 5 . . 2 4 4 1 3 3 2 2 2 Ballistic Gun 5 | . 12 . . . . . 11 14 18 7 11 13 15 15 8 . . . . . 3 8 9 3 . . . . Ballistic Cannon 1 | . 14 1 . . . . . . . . . . . . . 8 6 3 13 9 4 . . . . . . . Peak Build Rating 329 | 9 9 15 17 33 64 72 124 124 124 133 133 134 153 153 176 175 176 172 175 186 195 190 208 220 309 329 328 329 Average Rating 125 | 5 8 12 15 20 54 65 107 121 111 119 129 131 135 147 167 173 172 157 171 184 186 182 200 212 257 318 319 323 On Entrance 139 | . 9 9 15 16 33 64 71 124 121 103 133 129 133 143 148 174 174 172 172 170 185 190 179 203 218 309 315 323 Avg Prop Armor Cover (%) 6 | . . 15 14 . 11 10 . . . 2 . . 1 1 1 . . . . . 6 . . . . . . . Naked Turns . | . . . . . . . . . . . . . . . . . . . . . . . . . . . . . Heaviest Build 180 | 11 32 62 64 67 95 95 116 120 120 154 142 134 151 148 150 138 136 125 138 140 180 157 96 95 121 122 138 125 Greatest Support 188 | 40 40 40 40 40 28 100 160 160 160 188 188 188 188 160 165 165 165 175 170 170 175 173 97 100 129 126 126 126 Greatest Overweight (x) 3 | . . 2 3 3 3 3 . . . . . . 1 . . . . . . . 1 1 . . 1 . 1 . Average Overweight (x) . | . . . 1 1 2 1 . . . . . . . . . . . . . . . . . . . . . . Largest Inventory Capacity 25 | 5 15 20 20 20 20 20 20 20 20 25 25 25 25 25 25 20 20 20 20 20 25 25 15 15 25 25 25 25 Average Capacity 21 | 5 14 19 20 19 20 20 20 20 20 24 25 25 25 25 20 20 20 20 20 20 24 22 15 15 21 25 25 25 Most Carried 25 | 1 15 20 20 20 20 20 20 20 20 25 25 25 25 25 25 20 20 20 20 20 25 25 15 15 25 25 25 25 Average Carried 20 | . 10 18 19 18 17 19 19 20 19 22 24 24 24 24 20 19 19 19 20 19 23 19 14 14 20 24 24 24 Final Capacity 25 | 5 15 20 20 20 20 20 20 20 20 25 25 25 25 25 20 20 20 20 20 20 25 15 15 15 25 25 25 25 Final Carried 25 | 1 15 20 20 20 20 20 20 20 20 24 25 25 24 25 20 20 20 20 20 20 24 15 15 13 25 25 25 23 Class Distribution -------------------- 20% | Mutant 14% | Scavenger-Tank 13% | Infiltrator-Skirmisher 12% | Scavenger-Skirmisher 9% | Scavenger-Mutant 8% | Scavenger-Sprinter 6% | Commander-Tank 3% | Sprinter 3% | Infiltrator-Gunner Dominant Class ---------------- Mutant | -10/Materials Scavenger-Mutant | -10/Subcaves Mutant | -8/Recycling Mutant | -8/Scraptown Mutant | -6/Factory Commander-Tank | -6/Extension Commander-Tank | -6/Cetus Commander-Tank | -6/Archives Scavenger-Tank | -6/Hub_04(d) Scavenger-Tank | -5/Factory Scavenger-Skirmisher | -5/Upper Caves Scavenger-Skirmisher | -5/Upper Caves Commander-Skirmisher | -5/Warlord Scavenger-Skirmisher | -4/Proximity Caves Infiltrator-Skirmisher | -4/Factory Infiltrator-Skirmisher | -4/Upper Caves Infiltrator-Skirmisher | -4/Upper Caves Infiltrator-Skirmisher | -4/Zhirov Infiltrator-Skirmisher | -3/Proximity Caves Infiltrator-Skirmisher | -3/Research Infiltrator-Gunner | -3/Armory Scavenger-Gunner | -3/Lab Scavenger-Sprinter | -2/Research Scavenger-Sprinter | -2/Quarantine Scavenger-Sprinter | -2/Protoforge Ninja | -1/Access Sprinter | -1/Command Scavenger-Sprinter | -1/Access_0 Resources | -11 -10 -10 -8 -8 -6 -6 -6 -6 -6 -5 -5 -5 -5 -4 -4 -4 -4 -4 -3 -3 -3 -3 -2 -2 -2 -1 -1 -1 ----------- Run | Yrd Mat Sub Rec Scr Fac Ext Cet Arc Hub Fac Upp Upp War Pro Fac Upp Upp Zhi Pro Res Arm Lab Res Qua Frg Acc Com Ac0 Matter Collected 16024 | 333 231 298 40 48 150 360 518 31 1381 1099 281 490 387 308 645 209 391 . 490 246 2542 . 983 681 2606 145 871 260 Remotely 19 | . . . . . . . . . 19 . . . . . . . . . . . . . . . . . . . Salvage Created 26577 | 121 357 551 508 . 210 1208 137 31 2520 1585 107 501 638 373 793 74 304 . 260 465 3364 . 1758 762 4290 474 2387 2799 Parts 1046 | 9 17 30 16 . 9 54 12 . 104 59 5 20 16 20 21 4 8 . 14 22 160 . 77 42 172 15 35 105 Haulers Intercepted 10 | . 1 . . . . . . . 1 2 . . . . 3 . . . . 1 . . 2 . . . . . Recyclers Shooed 8 | . . . . . . . . . . 6 . . . . 1 . . . . . . . . . . . 1 . Parts Field Recycled . | . . . . . . . . . . . . . . . . . . . . . . . . . . . . . Retrieved Matter . | . . . . . . . . . . . . . . . . . . . . . . . . . . . . . Parts Self-Destructed 81 | . . 14 . . . . . . . . 5 20 . 19 . 4 6 . 13 . . . . . . . . . Prevented . | . . . . . . . . . . . . . . . . . . . . . . . . . . . . . Parts Restored 9 | . . . . . . . . . . . . . . . . . . . . . . . . . 9 . . . Faulty 9 | . . . . . . . . . . . . . . . . . . . . . . . . . 9 . . . Kills | -11 -10 -10 -8 -8 -6 -6 -6 -6 -6 -5 -5 -5 -5 -4 -4 -4 -4 -4 -3 -3 -3 -3 -2 -2 -2 -1 -1 -1 ------- Run | Yrd Mat Sub Rec Scr Fac Ext Cet Arc Hub Fac Upp Upp War Pro Fac Upp Upp Zhi Pro Res Arm Lab Res Qua Frg Acc Com Ac0 Combat Hostiles Destroyed 358 | . 8 13 3 . 5 20 . . 41 34 1 13 6 11 3 1 6 . 6 5 42 . 9 8 67 8 16 32 Melee 7 | . . . . . . . . . . . . . . . . . . . . . . . . 2 5 . . . Guns 104 | . 3 . . . . 12 . . 24 5 1 11 6 5 1 . . . . . 17 . 9 6 1 . 3 . Cannons 94 | . 5 8 3 . 1 . . . 5 3 . 1 . . 2 1 3 . 4 5 18 . . . 21 1 5 8 AOE 82 | . . 3 . . 2 3 . . 11 21 . 1 . 6 . . 3 . 2 . . . . . 23 7 . . Classes Destroyed 30 | 2 2 4 1 . . 2 . . 8 3 . . . 1 . . . . . . 1 . 1 1 4 . . . Worker 15 | . . . . . . . . . 3 5 . . . . 2 . . . . . . . 1 1 1 2 . . Builder 10 | . . . 1 . . 2 . . 3 . . . . . . . . . . . . . . . 3 1 . . Tunneler 3 | 2 . . . . . . . . . . . . . . . . . . . 1 . . . . . . . . Hauler 10 | . 1 . . . . . . . 1 2 . . . . 3 . . . . 1 . . 2 . . . . . Recycler 18 | 1 . . 4 . . . . . 3 1 . . . . 1 . . . . . . . 5 . . 1 2 . Carrier 1 | . . . . . . . . . . . . . . . . . . . . . 1 . . . . . . . Mechanic 5 | . . . . . . . . . . 1 . . . . . . . . . . 1 . . . 3 . . . Operator 1 | . . . . . . . . . . . . . . . . . . . . . . . 1 . . . . . Drone 12 | . . . . . . . . . . . . . . 2 . . . . 2 . . . . . 4 4 . . Watcher 12 | . . . . . . . . . . 4 . . . . 2 . . . . . 1 . 2 1 . 2 . . Swarmer 37 | . . 3 . . 2 3 . . . 8 . 5 . 5 . . 4 . . . 7 . . . . . . . Saboteur 3 | . . . . . . . . . 1 . . . . . . . . . . . 1 . . . 1 . . . Grunt 104 | . 8 . . . 2 10 . . 23 12 . 4 3 . . . . . . 5 8 . 2 3 15 4 5 . Brawler 10 | . . . . . . . . . 3 1 . 1 . . . . . . . . . . . . 5 . . . Duelist 12 | . . . . . . 1 . . 2 . . 1 . . . . . . . . 6 . . . 2 . . . Protector 8 | . . . . . . . . . 3 1 . . . . . . . . 1 . 3 . . . . . . . Researcher 8 | . . . . . . . . . . . . . . . . . . . . . . . . 1 7 . . . Sentry 35 | . . 1 3 . 1 5 . . 1 3 1 1 2 1 . 1 . . 1 . 2 . 1 . 11 . . . Demolisher 4 | . . . . . . . . . 1 . . . 1 . . . . . 2 . . . . . . . . . Specialist 6 | . . . . . . . . . . 3 . . 3 . . . . . . . . . . . . . . . Hunter 23 | . . . . . . . . . 3 3 . . 2 2 . . 2 . . . 2 . 2 . 3 . 4 . Programmer 41 | . . . . . . . . . 3 3 . 1 . 1 2 . . . . . 12 . 4 5 9 . 1 . Heavy 1 | . . . . . . . . . 1 . . . . . . . . . . . . . . . . . . . Behemoth 2 | . . . . . . 1 . . . . . . . . 1 . . . . . . . . . . . . . Armor Guard 4 | . . . . . . . . . . . . . . . . . . . . . 4 . . . . . . . M Guard 2 | . . . . . . . . . . . . . . . . . . . . . . . . . . . 2 . Enhanced Grunt 20 | . . . . . . . . . 1 . . . . . . . . . . . . . . . . . . 19 Enhanced Sentry 1 | . . . . . . . . . . . . . . . . . . . . . . . . . . . . 1 Enhanced Demolisher 1 | . . . . . . . . . . . . . 1 . . . . . . . . . . . . . . . Enhanced Hunter 5 | . . . . . . . . . . . . . . . . . . . . . . . . . . . . 5 Decapitator 7 | . . . . . . . . . . . . . . . . . . . . . . . . . 7 . . . Immortal 3 | . . . . . . . . . . . . . . . . . . . . . . . . . 3 . . . Combat Programmer 2 | . . . . . . . . . . . . . . . . . . . . . . . . . . . 2 . Alpha 7 2 | . . . . . . . . . . . . . . . . . . . . . . . . . 2 . . . V-Series 5 | . . . . . . . . . . . . . . . . . . . . . . . . . 5 . . . Artisan 1 | . . 1 . . . . . . . . . . . . . . . . . . . . . . . . . . Subdweller 9 | . . 9 . . . . . . . . . . . . . . . . . . . . . . . . . . Decomposer 1 | . . . . . . . . . . . 1 . . . . . . . . . . . . . . . . . Packrat 2 | . . . . . . . . . . . . . . . . . 2 . . . . . . . . . . . Tinkerer 1 | . . . . . . . . . . . . . . . . . . . . . . . . . 1 . . . Butcher 2 | . . . . . . . 1 . 1 . . . . . . . . . . . . . . . . . . . Guerrilla 1 | . . . . . . . . . 1 . . . . . . . . . . . . . . . . . . . Best Kill Streak 22 | 3 3 3 5 . 2 4 . . 22 18 1 4 4 4 3 1 3 . 2 5 6 . 14 3 12 5 15 5 Combat Bots Only 17 | . 3 3 1 . 2 4 . . 17 13 1 4 4 4 1 1 3 . 2 4 6 . 6 3 9 4 14 5 Max Kills in Single Turn 4 | 1 1 2 1 . 1 1 1 . 3 3 1 2 1 3 1 1 3 . 2 2 2 . 2 1 4 4 2 2 Gunslinging 1 | . . . . . . . . . 1 . . 1 . . . . . . . . . . . . . . . . Exploded 4 | . . 2 . . 1 1 . . 3 3 . 1 . 3 . . 3 . 1 . . . . . 2 4 . . Melee 1 | . . . . . . . . . . . . . . . . . . . . . . . . 1 1 . . . Uniques/NPCs Destroyed 10 | . . . . . . . 1 . . . . . . . . . . . . . . . . . . . 2 7 A7 (-6/Cetus) MAIN.C Shell (-1/Command) MAIN.C (-1/Command) A8 (-1/Access_0) A6 (-1/Access_0) A5 (-1/Access_0) A4 (-1/Access_0) A2 (-1/Access_0) Architect (-1/Access_0) A3 (-1/Access_0) Combat | -11 -10 -10 -8 -8 -6 -6 -6 -6 -6 -5 -5 -5 -5 -4 -4 -4 -4 -4 -3 -3 -3 -3 -2 -2 -2 -1 -1 -1 -------- Run | Yrd Mat Sub Rec Scr Fac Ext Cet Arc Hub Fac Upp Upp War Pro Fac Upp Upp Zhi Pro Res Arm Lab Res Qua Frg Acc Com Ac0 Hostile Shots Fired 1909 | . 33 25 6 . 38 162 19 . 218 165 4 33 57 42 34 . 50 . . 6 269 . 25 43 230 16 90 344 Missed 805 | . 11 9 2 . 24 67 5 . 63 60 1 8 17 12 12 . 13 . . 2 75 . 7 19 85 7 47 259 Deflected 18 | . . . . . . . . . . . . . . . . . 9 . . . 9 . . . . . . . Hits 1104 | . 22 16 4 . 14 95 14 . 155 105 3 25 40 30 22 . 37 . . 4 194 . 18 24 145 9 43 85 Melee 15 | . . . . . . . . . 1 1 . . . . . . . . . . 10 . . . 3 . . . Projectile 1089 | . 22 16 4 . 14 95 14 . 154 104 3 25 40 30 22 . 37 . . 4 184 . 18 24 142 9 43 85 AOE 43 | . . . . . . . . . 1 . . . 10 . 1 . . . . . . . . . 30 1 . . Critical Strikes 56 | . . . . . . 1 2 . 7 . . 2 1 1 3 . 1 . . 1 12 . 1 2 11 . 1 10 Actively Blocked 11 | . . . . . . . . . . . . . . . . . . . . . . . . . 11 . . . Part Disruptions 7 | . . . . . . . . . . . . . 1 . . . . . . . 2 . . 2 1 . 1 . Damage Taken 20132 | . 311 369 61 . 205 706 405 . 3250 2078 75 467 1154 504 610 . 76 . 93 40 2623 . 434 556 3843 145 771 1356 Core 1211 | . 29 65 . . 18 56 12 . 219 124 . . 67 52 19 . 8 . . . 104 . 59 47 254 . 42 36 Absorbed by Shields 4796 | . . . . . 28 376 63 . . 44 . . . . . . 220 . . 42 1191 . . . 678 136 750 1268 Reduced by Siege Mode 330 | . . . . . . . . . 145 127 6 25 . 27 . . . . . . . . . . . . . . Ignored by Resistances 395 | . . . . . . . . . . . . . . . 37 . 147 . . . 211 . . . . . . . Regen/Repaired (Parts) 5365 | . . . . . . . 98 76 569 807 146 . 136 150 196 21 . . 63 10 309 . 83 203 1249 68 424 757 Core Remaining (%) 78 | 100 . . . 62 . . . . 64 . . . . 75 . . . . 97 . . 82 . . 68 . . 81 Volleys Fired 1358 | 11 29 29 6 . 26 53 25 19 99 75 19 27 34 26 61 10 44 . 9 8 197 32 46 29 175 9 66 194 Largest 3 | 2 2 2 2 . 1 3 3 1 3 3 3 3 3 3 3 3 3 . 3 3 3 1 3 3 1 1 1 1 Hottest 260 | 40 100 160 160 . 90 245 189 90 139 215 105 160 260 105 160 168 202 . 200 168 200 120 120 120 140 140 140 140 Shots Fired 2196 | 21 53 41 12 . 26 149 55 19 241 117 25 65 60 48 107 12 60 . 19 19 398 32 92 78 178 9 66 194 Gun 1146 | 21 30 3 . . . 147 44 . 212 40 9 55 55 33 51 . . . . . 222 . 69 74 24 . 27 30 Cannon 957 | . 18 36 12 . 23 . 2 19 21 49 16 5 4 11 56 12 59 . 17 19 176 32 23 4 136 4 39 164 Launcher 84 | . . 2 . . 3 2 5 . 8 28 . 5 1 4 . . 1 . 2 . . . . . 18 5 . . Special 9 | . 5 . . . . . 4 . . . . . . . . . . . . . . . . . . . . . Kinetic 1102 | 21 48 5 . . 3 2 38 . 220 40 9 55 43 33 55 3 28 . 14 17 299 . 69 74 19 . 7 . Thermal 694 | . 5 34 12 . 12 53 . 19 4 42 16 5 5 11 49 9 26 . . 1 39 32 23 4 98 4 32 159 Explosive 59 | . . 2 . . . . . . . 22 . 5 . 4 . . 1 . 2 . . . . . 18 5 . . Electromagnetic 284 | . . . . . 11 94 13 . 17 13 . . . . 3 . 5 . 3 1 60 . . . 38 . 21 5 Slashing 1 | . . . . . . . . . . . . . . . . . . . . . . . . . . . . 1 Entropic 52 | . . . . . . . . . . . . . 12 . . . . . . . . . . . 5 . 6 29 Robot Hit Streak 19 | 4 12 11 9 . 10 14 9 5 12 15 1 11 9 7 16 6 8 . 5 4 18 . 8 8 19 5 17 17 Robot Miss Streak 6 | 2 3 1 2 . 1 3 3 1 4 4 . 4 2 3 3 . 4 . . 1 5 . 3 6 4 . 2 5 Penetration Max 3 | . . . . . . . . . 1 1 . 1 1 . . . . . 1 1 3 . 1 2 1 1 1 1 Secondary Targets 18 | . . . . . . 3 . . 6 . . 4 2 . . . . . . . 3 . . . . . . . Max Gunslinging Chain 2 | . . . . . . 1 . . 1 . . 2 1 . . . . . . . 1 . . . . . . . Capacitor 290 | . . . . . . . . . . . . . . . . . . . . . . . . . 33 4 59 194 Shots Hit Robots 1241 | 13 32 28 14 . 15 88 33 5 139 70 1 34 35 23 54 2 23 . 4 9 194 . 50 49 124 6 52 144 Core Hits 845 | 4 15 12 5 . 7 45 14 1 125 115 3 21 27 13 20 1 7 . 5 8 92 . 27 18 128 21 35 76 Critical Kills 141 | . . 2 . . . . . 1 16 2 . 5 5 5 1 1 2 . 4 7 26 . 16 5 16 . 4 23 Critical Parts Destroyed 141 | . . . 1 . . . 5 . 21 2 . 5 5 5 6 1 9 . 2 4 44 . 13 16 2 . . . Critical Strikes 321 | . 1 2 1 . . 8 6 1 38 4 1 10 11 10 7 2 11 . 6 11 86 . 31 21 25 . 5 23 Burn 6 | . . . . . . 6 . . . . . . . . . . . . . . . . . . . . . . Meltdown 45 | . . 2 . . . . . 1 . . . . . . . . . . . . . . . . 15 . 4 23 Destroy 256 | . . . . . . . 6 . 37 4 1 10 10 10 7 2 11 . 6 11 86 . 31 21 3 . . . Blast 5 | . 1 . . . . . . . . . . . . . . . . . . . . . . . 3 . 1 . Corrupt 6 | . . . . . . 2 . . 1 . . . . . . . . . . . . . . . 3 . . . Smash 1 | . . . 1 . . . . . . . . . . . . . . . . . . . . . . . . . Sever 1 | . . . . . . . . . . . . . . . . . . . . . . . . . 1 . . . Detonate 1 | . . . . . . . . . . . . . 1 . . . . . . . . . . . . . . . Melee Attacks 162 | . . 47 5 . . . . . . . . . . . . . . . . . . . 7 34 49 6 11 3 Impact 52 | . . 47 5 . . . . . . . . . . . . . . . . . . . . . . . . . Slashing 110 | . . . . . . . . . . . . . . . . . . . . . . . 7 34 49 6 11 3 Piercing . | . . . . . . . . . . . . . . . . . . . . . . . . . . . . . Sneak Attacks 22 | . . 1 5 . . . . . . . . . . . . . . . . . . . 2 3 8 2 1 . Combat Hostiles 1 | . . . . . . . . . . . . . . . . . . . . . . . . 1 . . . . Follow-up Attacks . | . . . . . . . . . . . . . . . . . . . . . . . . . . . . . Martial Strikes 4 | . . . . . . . . . . . . . . . . . . . . . . . . . 4 . . . Damage Inflicted 67649 | 157 469 797 637 . 704 2238 1502 162 7112 7023 204 1579 1623 992 1859 35 674 . 329 248 4425 . 961 1776 14536 2568 4717 10322 Guns 16833 | 157 231 23 . . . 1959 970 . 4053 746 175 1077 1592 477 1074 . . . . . 1024 . 421 463 364 . 1049 978 Cannons 26773 | . 230 672 247 . 465 . 49 162 445 904 . 32 . . 677 35 441 . 128 248 3348 . 215 . 6694 294 2143 9344 Explosions 17689 | . . 102 . . 239 279 483 . 2587 5292 . 470 31 515 . . 233 . 201 . 53 . . . 5032 1884 288 . Melee 6092 | . . . 381 . . . . . . . . . . . . . . . . . . . 325 1313 2446 390 1237 . Ramming 262 | . 8 . 9 . . . . . 27 81 29 . . . 108 . . . . . . . . . . . . . Kinetic 17887 | 157 461 40 . . 187 240 892 . 6640 746 175 1077 1020 477 1111 35 226 . 128 248 2003 . 421 463 463 . 677 . Thermal 22004 | . . 655 247 . 211 837 267 162 . 752 . 32 . . 519 . 68 . . . 873 . 215 . 5878 294 1754 9240 Explosive 13113 | . . 102 . . . . . . . 4743 . 470 . 515 . . 233 . 201 . . . . . 4965 1884 . . Electromagnetic 6325 | . . . . . 306 1161 343 . 445 701 . . 31 . 121 . 147 . . . 1549 . . . 586 . 831 104 Impact 381 | . . . 381 . . . . . . . . . . . . . . . . . . . . . . . . . Slashing 5711 | . . . . . . . . . . . . . . . . . . . . . . . 325 1313 2446 390 1237 . Piercing . | . . . . . . . . . . . . . . . . . . . . . . . . . . . . . Entropic 1966 | . . . . . . . . . . . . . 572 . . . . . . . . . . . 198 . 218 978 Highest Corruption 29 | . . . . . . . 10 10 29 2 2 . . . 3 3 3 3 3 . 11 11 4 13 22 . 7 1 Average Corruption 7 | . . . . . . . 10 10 14 1 1 . . . 2 3 3 3 3 . 5 11 3 6 16 . 1 1 Corruption Purged 23 | . . . . . . . . . . . 2 . . . . . . . . . . . . 13 . . 8 . Corruption Blocked . | . . . . . . . . . . . . . . . . . . . . . . . . . . . . . Effects 349 | . . . . . . . 21 6 110 3 2 . . . 15 11 14 4 13 . 43 12 7 20 55 . 10 3 Message Errors 75 | . . . . . . . 3 1 19 . 1 . . . 7 1 2 . 3 . 11 4 2 5 13 . 1 2 Matter Fused 88 | . . . . . . . 11 1 24 1 1 . . . 2 6 5 1 3 . 10 1 3 5 12 . 2 . Heat Flow Errors 40 | . . . . . . . 1 3 10 . . . . . 1 2 . . 1 . 4 3 . 2 10 . 2 1 Energy Discharges 50 | . . . . . . . 1 . 20 . . . . . 3 1 4 2 3 . 6 2 1 2 4 . 1 . Parts Rejected 3 | . . . . . . . . . 1 . . . . . . . . . . . . . . . 2 . . . Parts Fused 4 | . . . . . . . 1 . 1 . . . . . 1 . 1 . . . . . . . . . . . Data Loss (minor) 35 | . . . . . . . 1 . 12 . . . . . 1 1 1 1 2 . 4 1 1 3 4 . 3 . Data Loss (major) 13 | . . . . . . . 1 . 6 1 . . . . . . . . . . 1 1 . 1 2 . . . Misfires 11 | . . . . . . . 2 . 3 1 . . . . . . 1 . . . . . . . 4 . . . Alerts 8 | . . . . . . . . 1 3 . . . . . . . . . 1 . 2 . . . . . 1 . Misdirections 6 | . . . . . . . . . 2 . . . . . . . . . . . . . . 1 3 . . . Weapon Failures 16 | . . . . . . . . . 9 . . . . . . . . . . . 5 . . 1 1 . . . Overload Shots . | . . . . . . . . . . . . . . . . . . . . . . . . . . . . . Overflow Damage 3214 | . . . 161 . . . . 15 56 94 14 . . 56 35 . 131 . 85 . 150 . 133 446 1086 232 409 111 Projectiles 970 | . . . . . . . . 15 . 13 . . . . 14 . 131 . . . 150 . . . 329 53 154 111 Explosions 494 | . . . . . . . . . 56 81 . . . 56 . . . . 85 . . . . . 73 54 89 . Melee 1750 | . . . 161 . . . . . . . 14 . . . 21 . . . . . . . 133 446 684 125 166 . Knockbacks 20 | . 6 . 1 . . . . . . . . . . . 1 . . . . . 10 . . . 2 . . . Impact 1 | . . . 1 . . . . . . . . . . . . . . . . . . . . . . . . . Kinetic 17 | . 4 . . . . . . . . . . . . . 1 . . . . . 10 . . . 2 . . . Secondary 2 | . 2 . . . . . . . . . . . . . . . . . . . . . . . . . . . Self-Inflicted Damage 623 | . . . . . 59 . . . 59 61 . . . . . . . . 93 . . . . . 351 . . . Shots 19 | . . . . . 1 . . . 1 1 . . . . . . . . 2 . . . . . 14 . . . Rammed 13 | . 2 . 1 . . . . . 5 3 1 . . . 1 . . . . . . . . . . . . . Targets Rammed 17 | . 2 . 1 . . . . . 5 3 1 . . . 5 . . . . . . . . . . . . . Kicked 4 | . . . . . . . . . . . . . . . 4 . . . . . . . . . . . . . Crushed . | . . . . . . . . . . . . . . . . . . . . . . . . . . . . . Highest Temperature 414 | . 100 123 414 . 17 240 57 209 246 182 70 7 257 220 307 263 282 . 211 96 332 249 337 321 304 106 203 183 Average Temperature 84 | . 26 39 142 . 10 85 57 72 66 32 29 7 126 99 88 87 91 . 71 51 75 105 97 85 67 54 95 117 Received Heat Transfer 2883 | . 180 42 18 . 54 224 31 . 980 280 9 126 195 9 48 . . . . 9 326 . 45 18 195 4 24 66 Thermoelectric Energy+ 1868 | . . . . . . . . . . . . . . . . . . . . . . . . . 170 . 331 1367 Effects 14 | . . . 6 . . . . . . . . . 3 . . . . . . . 1 . . 2 2 . . . Shutdowns 1 | . . . 1 . . . . . . . . . . . . . . . . . . . . . . . . . Interference 10 | . . . 3 . . . . . . . . . 3 . . . . . . . . . . 2 2 . . . Short Circuit 2 | . . . 1 . . . . . . . . . . . . . . . . . 1 . . . . . . . Damage (minor) 1 | . . . 1 . . . . . . . . . . . . . . . . . . . . . . . . . Siege Activations 13 | . . . . . . . . . 5 1 2 3 . 2 . . . . . . . . . . . . . . Total Turns 203 | . . . . . . . . . 64 21 48 51 . 19 . . . . . . . . . . . . . . Longest Duration 38 | . . . . . . . . . 31 21 38 19 . 16 . . . . . . . . . . . . . . Martial Activations . | . . . . . . . . . . . . . . . . . . . . . . . . . . . . . Shielding Activations 10 | . . . . . . . . . . . . . . . 1 1 1 . 1 1 5 . . . . . . . Total Turns 135 | . . . . . . . . . . . . . . . 3 3 42 . 15 6 66 . . . . . . . Longest Duration 42 | . . . . . . . . . . . . . . . 3 3 42 . 15 6 28 . . . . . . . Robots Disrupted . | . . . . . . . . . . . . . . . . . . . . . . . . . . . . . Combat Hostiles . | . . . . . . . . . . . . . . . . . . . . . . . . . . . . . Robots Corrupted 34 | . . . 3 . 2 3 . . 1 5 1 . . . 1 . . . . . 10 . . . 3 . 4 1 Combat Hostiles 26 | . . . . . 2 3 . . 1 5 . . . . . . . . . . 7 . . . 3 . 4 1 Parts Fried 66 | . . . 1 . 2 16 . . 2 6 . . . . . . . . . . 26 . . . 6 . 2 5 Impact Corruptions 10 | . . . 6 . . . . . . . 2 . . . 2 . . . . . . . . . . . . . Robots Melted 47 | . . 2 . . . 2 . 1 . . . . . . . . . . . . . . . . 15 . 4 23 Combat Hostiles 44 | . . 2 . . . 2 . . . . . . . . . . . . . . . . . . 13 . 4 23 Parts Melted 106 | . . 6 . . 1 6 . 2 . 2 . 1 . . 1 . . . . . 8 . . . 30 . 5 44 Heat Transferred 16452 | . . 888 333 . 300 2650 200 250 . 1060 . 50 . . 518 . 74 . . . 679 . 185 . 3887 187 902 4289 Parts Sabotaged 6 | . . . . . . . . . . 4 . . . . . . . . . . 2 . . . . . . . Parts Stolen . | . . . . . . . . . . . . . . . . . . . . . . . . . . . . . Parts Stripped . | . . . . . . . . . . . . . . . . . . . . . . . . . . . . . Power Chain Reactions 6 | . . . . . 1 1 1 . . . . . . . . . . . . . 1 . . . 1 . 1 . Alert | -11 -10 -10 -8 -8 -6 -6 -6 -6 -6 -5 -5 -5 -5 -4 -4 -4 -4 -4 -3 -3 -3 -3 -2 -2 -2 -1 -1 -1 ------- Run | Yrd Mat Sub Rec Scr Fac Ext Cet Arc Hub Fac Upp Upp War Pro Fac Upp Upp Zhi Pro Res Arm Lab Res Qua Frg Acc Com Ac0 Maximum Alert Level 5 | . . . . . . 2 1 . 5 4 . . . . . . . . . . 3 . 1 1 5 5 4 . Low Security (%) 47 | 100 100 . 100 . 100 72 22 100 5 . . . . . 100 . . . . 100 48 . 87 12 13 . . . Level 1 11 | . . . . . . 14 77 . 3 . . . . . . . . . . . 19 . 12 87 . . . . Level 2 5 | . . . . . . 12 . . 3 . . . . . . . . . . . 18 . . . 20 . . . Level 3 8 | . . . . . . . . . 7 69 . . . . . . . . . . 13 . . . 11 . . . Level 4 15 | . . . . . . . . . 16 30 . . . . . . . . . . . . . . 18 82 100 . Level 5 12 | . . . . . . . . . 62 . . . . . . . . . . . . . . . 35 15 . . High Security . | . . . . . . . . . . . . . . . . . . . . . . . . . . 1 . . Max Security . | . . . . . . . . . . . . . . . . . . . . . . . . . . . . . Peak Influence 2244 | 10 97 . 65 . 94 487 337 60 1821 1526 . . . . 73 . . . . 85 843 . 256 346 2244 1759 1497 . Initial 1344 | . . . 53 . . 31 252 54 . 830 . . . . 9 . . . . . . . . 144 155 1344 1125 . Average 534 | . 23 . 18 . 30 156 241 40 1394 1022 . . . . 18 . . . . 20 317 . 83 276 1199 1458 1333 . Influence Increases 15135 | 15 305 170 295 . 194 1148 364 28 3115 1168 20 260 120 220 405 20 140 . 75 132 1388 . 516 418 2845 575 571 628 Destroy 0b10 Robot/C 7160 | . 160 80 60 . 100 580 160 . 1300 660 20 260 120 180 80 20 120 . 60 100 860 . 180 180 1400 160 320 . Destroy 0b10 Robot/NC 560 | 15 5 . 25 . . 35 10 5 105 70 . . . 10 50 . . . 15 10 10 . 55 10 75 30 25 . Destroy Leader 996 | . 52 . . . 20 34 . . 268 122 . . . 30 40 . 20 . . 12 172 . 48 22 100 14 42 . Allied During Kill 1488 | . . . . . . 311 170 5 983 . . . . . 3 . . . . . 9 . . . . . 7 . Successful Hack 323 | . 6 . 27 . . 51 . . 14 21 . . . . 36 . . . . 8 18 . 41 29 . 45 27 . Select Force Hacks 240 | . 60 . 180 . . . . . . . . . . . . . . . . . . . . . . . . . Disable Machine 1005 | . . . . . 15 30 . 15 135 15 . . . . 120 . . . . . 90 . 45 75 285 . 45 135 Anti-Garrison Action 300 | . . . . . . . . . 150 . . . . . . . . . . . . . . . 150 . . . Destroy Structure 2068 | . 7 . 3 . 44 32 24 3 145 190 . . . . 76 . . . . 2 64 . 57 42 745 126 30 478 Partial Spotted 210 | . . . . . . . . . . . . . . . . . . . . . . . 90 45 30 . 30 15 Lose Combat Pursuer 585 | . 15 90 . . 15 75 . . 15 90 . . . . . . . . . . 165 . . 15 60 . 45 . Active Sensor Use 200 | . . . . . . . . . . . . . . . . . . . . . . . . . . 200 . . Influence Decreases 14542 | 15 305 58 407 . 129 763 678 164 1420 1343 1077 607 158 282 408 33 140 . 75 132 554 834 260 398 881 1056 784 1581 Entered New Map 6239 | . . . 59 . . 34 198 82 . 865 563 89 116 78 7 5 . . . . . 834 . 112 121 896 634 1546 Time Decay 6623 | 15 305 58 348 . 129 533 310 70 660 458 514 518 32 204 341 28 140 . 75 132 514 . 163 286 510 160 120 . Lost Part 210 | . . . . . . . 10 . 30 20 . . 10 . . . . . . . 30 . . . 100 . 10 . Lost Ally 637 | . . . . . . 60 160 12 280 . . . . . 60 . . . . . 10 . . . . . 20 35 Purge Threat 833 | . . . . . . 136 . . 450 . . . . . . . . . . . . . 97 . 150 . . . Squads Dispatched 74 | . 2 . . . 3 . . . 22 3 . . . . 2 . . . . 6 11 . 1 2 16 5 1 . Investigation 7 | . 2 . . . . . . . . . . . . . . . . . . 2 . . . . 1 2 . . Extermination 21 | . . . . . 1 . . . 4 . . . . . 2 . . . . . 5 . 1 2 3 2 1 . Reinforcement 20 | . . . . . 2 . . . 9 2 . . . . . . . . . 4 1 . . . 2 . . . Assault 23 | . . . . . . . . . 7 1 . . . . . . . . . . 5 . . . 9 1 . . Garrison 3 | . . . . . . . . . 2 . . . . . . . . . . . . . . . 1 . . . Intercept . | . . . . . . . . . . . . . . . . . . . . . . . . . . . . . Searches Triggered . | . . . . . . . . . . . . . . . . . . . . . . . . . . . . . Unchained Authorized 1 | . . . . . . . . . . . . . . . . . . . . . . . . . . 1 . . Construction Impeded 5 | . . . . . 1 . . . 3 1 . . . . . . . . . . . . . . . . . . Haulers Reinforced 6 | . . . . . . . . . 2 . . . . . . . . . . 4 . . . . . . . . Active Scanning Responses 2 | . . . . . . . . . . . . . . . . . . . . . . . . . . 2 . . Cargo Convoy Interrupts 1 | . . . . . . . . . . 1 . . . . . . . . . . . . . . . . . . Stealth | -11 -10 -10 -8 -8 -6 -6 -6 -6 -6 -5 -5 -5 -5 -4 -4 -4 -4 -4 -3 -3 -3 -3 -2 -2 -2 -1 -1 -1 --------- Run | Yrd Mat Sub Rec Scr Fac Ext Cet Arc Hub Fac Upp Upp War Pro Fac Upp Upp Zhi Pro Res Arm Lab Res Qua Frg Acc Com Ac0 Distress Signals 50 | . . . . . 1 . 2 . 2 4 . . 2 . 1 . . . 10 5 1 . . . . . 22 . Communications Jammed 245 | . . . . . . . . . . . . . 86 1 34 . . . 3 . 92 . 17 10 2 . . . Distress Signals 242 | . . . . . . . . . . . . . 86 . 34 . . . 1 . 92 . 17 10 2 . . . Times Spotted 556 | . 16 18 1 . 7 32 10 . 80 53 1 12 32 8 11 . 4 . 3 7 74 . 13 15 81 10 17 51 Peak Tracking Total 14 | . 5 4 1 . 2 6 5 . 14 13 1 3 11 2 2 . 3 . 2 5 13 . 3 3 8 8 5 8 Tactical Retreats 28 | . 1 2 . . 1 5 . . 1 5 . . . . . . . . . . 7 . . 1 2 . 2 1 Traps | -11 -10 -10 -8 -8 -6 -6 -6 -6 -6 -5 -5 -5 -5 -4 -4 -4 -4 -4 -3 -3 -3 -3 -2 -2 -2 -1 -1 -1 ------- Run | Yrd Mat Sub Rec Scr Fac Ext Cet Arc Hub Fac Upp Upp War Pro Fac Upp Upp Zhi Pro Res Arm Lab Res Qua Frg Acc Com Ac0 Traps Triggered 16 | . . 1 . . . . . . 1 . . . . . . . . . . 1 5 . . . 8 . . . Indirectly . | . . . . . . . . . . . . . . . . . . . . . . . . . . . . . Trap Hack Attempts . | . . . . . . . . . . . . . . . . . . . . . . . . . . . . . Triggered . | . . . . . . . . . . . . . . . . . . . . . . . . . . . . . Disarmed . | . . . . . . . . . . . . . . . . . . . . . . . . . . . . . Reprogrammed . | . . . . . . . . . . . . . . . . . . . . . . . . . . . . . Reused . | . . . . . . . . . . . . . . . . . . . . . . . . . . . . . Traps Extracted . | . . . . . . . . . . . . . . . . . . . . . . . . . . . . . Installed 1 | . . 1 . . . . . . . . . . . . . . . . . . . . . . . . . . Triggered . | . . . . . . . . . . . . . . . . . . . . . . . . . . . . . Machines | -11 -10 -10 -8 -8 -6 -6 -6 -6 -6 -5 -5 -5 -5 -4 -4 -4 -4 -4 -3 -3 -3 -3 -2 -2 -2 -1 -1 -1 ---------- Run | Yrd Mat Sub Rec Scr Fac Ext Cet Arc Hub Fac Upp Upp War Pro Fac Upp Upp Zhi Pro Res Arm Lab Res Qua Frg Acc Com Ac0 Machines Disabled 93 | . . 1 . . 1 3 . 1 10 1 . 2 2 . 8 . . . 2 . 6 6 3 5 27 . 3 12 Max in Single Turn 2 | . . 1 . . 1 1 . 1 2 1 . 1 1 . 1 . . . 1 . 1 1 1 1 2 . 1 1 Garrison Access 3 | . . . . . . . . . 1 . . . . . . . . . . . . . 1 . 1 . . . Network Hub 2 | . . . . . . . . . 2 . . . . . . . . . . . . . . . . . . . Machines Repaired . | . . . . . . . . . . . . . . . . . . . . . . . . . . . . . Machines Dismantled . | . . . . . . . . . . . . . . . . . . . . . . . . . . . . . Machines Sabotaged . | . . . . . . . . . . . . . . . . . . . . . . . . . . . . . Overloaded Fab Kills . | . . . . . . . . . . . . . . . . . . . . . . . . . . . . . Hacking | -11 -10 -10 -8 -8 -6 -6 -6 -6 -6 -5 -5 -5 -5 -4 -4 -4 -4 -4 -3 -3 -3 -3 -2 -2 -2 -1 -1 -1 --------- Run | Yrd Mat Sub Rec Scr Fac Ext Cet Arc Hub Fac Upp Upp War Pro Fac Upp Upp Zhi Pro Res Arm Lab Res Qua Frg Acc Com Ac0 Machines Accessed 97 | . 8 2 11 2 2 14 . . 4 5 1 1 1 . 6 1 . 4 . 2 5 . 8 3 4 8 4 1 Terminals 55 | . 6 . 5 . . 14 . . 4 1 . 1 . . 1 . . . . . 4 . 5 2 3 5 4 . Fabricators 2 | . . . . . . . . . . . . . . . 1 . . . . 1 . . . . . . . . Repair Stations 4 | . . . . . 1 . . . . 1 . . . . 2 . . . . . . . . . . . . . Recycling Units 13 | . 2 . 6 . 1 . . . . 2 . . . . . . . . . . 1 . 1 . . . . . Scanalyzers 6 | . . . . . . . . . . 1 . . . . 1 . . . . 1 . . 1 1 . 1 . . Garrison Access 5 | . . . . . . . . . . . . . . . 1 . . . . . . . 1 . 1 2 . . Total Hacks 326 | . 22 5 38 26 3 36 . . 16 21 1 5 1 . 32 1 . 17 . 5 9 . 31 8 10 15 7 17 Successful 178 | . 11 5 24 26 . 16 . . 5 9 1 5 1 . 15 1 . 17 . 1 5 . 9 2 2 4 2 17 Failed 145 | . 11 . 14 . 3 20 . . 11 11 . . . . 17 . . . . 3 4 . 22 5 8 11 5 . Catastrophic 24 | . 2 . 2 . 1 2 . . 1 . . . . . 3 . . . . 1 1 . 4 1 . 3 3 . Database Lockouts 3 | . . . . . . . . . . 1 . . . . . . . . . 1 . . . 1 . . . . Manual 82 | . 13 . 23 . . 9 1 . 5 7 . . . . 3 . . . . . . . 9 3 5 . 4 . Terminals 156 | . 16 . 24 . . 36 . . 16 4 . 5 . . 1 . . . . . 8 . 18 6 6 9 7 . Fabricators 5 | . . . . . . . . . . . . . . . 2 . . . . 3 . . . . . . . . Repair Stations 16 | . . . . . 1 . . . . 5 . . . . 10 . . . . . . . . . . . . . Recycling Units 36 | . 6 . 14 . 2 . . . . 9 . . . . . . . . . . 1 . 4 . . . . . Scanalyzers 27 | . . . . . . . . . . 3 . . . . 12 . . . . 2 . . 4 2 . 4 . . Garrison Access 18 | . . . . . . . . . . . . . . . 7 . . . . . . . 5 . 4 2 . . Terminal Hacks 117 | . 3 5 6 26 . 13 . . 5 1 1 5 1 . 1 1 . 17 . . 4 . 4 1 2 3 1 17 Record 58 | . . 4 . 26 . . . . . . . 5 . . . . . 5 . . 1 . . . . . . 17 Part Schematic 5 | . . . 1 . . . . . . . . . . . . . . 4 . . . . . . . . . . Robot Schematic 1 | . . . 1 . . . . . . . . . . . . . . . . . . . . . . . . . Robot Analysis 6 | . 1 . 1 . . . . . . . . . . . . . . 4 . . . . . . . . . . Prototype ID Bank 5 | . . . . . . 1 . . . . . . . . . . . 4 . . . . . . . . . . Open Door 16 | . . . . . . 7 . . . . 1 . 1 . . 1 . . . . 2 . . . . 3 1 . Branch Access Points 2 | . . . . . . . . . . . . . . . 1 . . . . . . . 1 . . . . . Emergency Access Points 1 | . . . . . . . . . . . . . . . . . . . . . . . . 1 . . . . Terminal Index 1 | . . . 1 . . . . . . . . . . . . . . . . . . . . . . . . . Alert Level 1 | . . . . . . . . . 1 . . . . . . . . . . . . . . . . . . . Unreport Threat 7 | . . . . . . 2 . . 3 . . . . . . . . . . . . . 1 . 1 . . . Locate Traps 4 | . 2 . . . . . . . . . . . . . . . . . . . . . 2 . . . . . Hauler Manifests 1 | . . . . . . 1 . . . . . . . . . . . . . . . . . . . . . . Registered Components 3 | . . . 1 . . 1 . . . . . . . . . . . . . . 1 . . . . . . . Registered Prototypes 1 | . . . . . . 1 . . . . . . . . . . . . . . . . . . . . . . Zone Layout 3 | . . . 1 . . . . . 1 1 . . . . . . . . . . . . . . . . . . Proto ID Catalog 2 | . . 1 . . . . . . . . . . . . . . . . . . . . . . 1 . . . Fabricator Hacks . | . . . . . . . . . . . . . . . . . . . . . . . . . . . . . Repair Station Hacks 6 | . . . . . . . . . . 2 . . . . 4 . . . . . . . . . . . . . Scan Component 4 | . . . . . . . . . . 1 . . . . 3 . . . . . . . . . . . . . Repair 2 | . . . . . . . . . . 1 . . . . 1 . . . . . . . . . . . . . Recycling Unit Hacks 9 | . . . 5 . . . . . . 2 . . . . . . . . . . 1 . 1 . . . . . Retrieve Components 9 | . . . 5 . . . . . . 2 . . . . . . . . . . 1 . 1 . . . . . Scanalyzer 15 | . . . . . . . . . . 1 . . . . 9 . . . . 1 . . 2 1 . 1 . . Insert Component 2 | . . . . . . . . . . . . . . . 2 . . . . . . . . . . . . . Analyze 1 | . . . . . . . . . . . . . . . 1 . . . . . . . . . . . . . Retrieve Study 12 | . . . . . . . . . . 1 . . . . 6 . . . . 1 . . 2 1 . 1 . . Garrison Access Hacks 1 | . . . . . . . . . . . . . . . . . . . . . . . 1 . . . . . Seal Access 1 | . . . . . . . . . . . . . . . . . . . . . . . 1 . . . . . Unauthorized Hacks 30 | . 8 . 13 . . 3 . . . 3 . . . . 1 . . . . . . . 1 . . . 1 . Terminals 17 | . 6 . 7 . . 3 . . . . . . . . . . . . . . . . . . . . 1 . Botnet 7 | . 1 . 2 . . 3 . . . . . . . . . . . . . . . . . . . . 1 . Skim 10 | . 5 . 5 . . . . . . . . . . . . . . . . . . . . . . . . . Fabricators 1 | . . . . . . . . . . . . . . . 1 . . . . . . . . . . . . . Liberate 1 | . . . . . . . . . . . . . . . 1 . . . . . . . . . . . . . Repair Stations . | . . . . . . . . . . . . . . . . . . . . . . . . . . . . . Recycling Units 12 | . 2 . 6 . . . . . . 3 . . . . . . . . . . . . 1 . . . . . Reject 3 | . . . . . . . . . . 2 . . . . . . . . . . . . 1 . . . . . Mask 1 | . . . . . . . . . . 1 . . . . . . . . . . . . . . . . . . Tunnel 8 | . 2 . 6 . . . . . . . . . . . . . . . . . . . . . . . . . Scanalyzers . | . . . . . . . . . . . . . . . . . . . . . . . . . . . . . Garrison Access . | . . . . . . . . . . . . . . . . . . . . . . . . . . . . . Data Cores Recovered . | . . . . . . . . . . . . . . . . . . . . . . . . . . . . . Used . | . . . . . . . . . . . . . . . . . . . . . . . . . . . . . Hacking Detections 63 | . 7 . 7 . 2 11 . . 4 3 . 1 . . 5 . . . . 2 1 . 7 1 4 5 3 . Full Trace Events 1 | . . . . . . . . . . . . . . . . . . . . . . . . . 1 . . . Feedback Events . | . . . . . . . . . . . . . . . . . . . . . . . . . . . . . Feedback Blocked . | . . . . . . . . . . . . . . . . . . . . . . . . . . . . . Robot Schematics Acquired 7 | . . . 1 . . . . . . . . . . . . . . . . . . . . 1 5 . . . Robots Built . | . . . . . . . . . . . . . . . . . . . . . . . . . . . . . Authchips . | . . . . . . . . . . . . . . . . . . . . . . . . . . . . . Time . | . . . . . . . . . . . . . . . . . . . . . . . . . . . . . Total Robot Build Rating . | . . . . . . . . . . . . . . . . . . . . . . . . . . . . . Part Schematics Acquired 20 | . . . 1 . . . . . . . . . . . 1 . . 4 . . . . . 1 13 . . . Parts Built . | . . . . . . . . . . . . . . . . . . . . . . . . . . . . . Authchips . | . . . . . . . . . . . . . . . . . . . . . . . . . . . . . Time . | . . . . . . . . . . . . . . . . . . . . . . . . . . . . . Total Part Build Rating . | . . . . . . . . . . . . . . . . . . . . . . . . . . . . . Part Studies Acquired 10 | . . . . . . . . . . 1 . . . . 4 . . . . 1 . . 2 1 . 1 . . Parts Repaired 2 | . . . . . . . . . . 1 . . . . 1 . . . . . . . . . . . . . Time 157 | . . . . . . . . . . 108 . . . . 49 . . . . . . . . . . . . . Parts Recycled . | . . . . . . . . . . . . . . . . . . . . . . . . . . . . . Recycled Matter . | . . . . . . . . . . . . . . . . . . . . . . . . . . . . . Retrieved Matter . | . . . . . . . . . . . . . . . . . . . . . . . . . . . . . Retrieved Components 24 | . . . 18 . . . . . . 3 . . . . . . . . . . 1 . 2 . . . . . Parts Scanalyzed 2 | . . . . . . . . . . . . . . . 2 . . . . . . . . . . . . . Part Schematics Acquired 1 | . . . . . . . . . . . . . . . 1 . . . . . . . . . . . . . Parts Damaged . | . . . . . . . . . . . . . . . . . . . . . . . . . . . . . Bothacking | -11 -10 -10 -8 -8 -6 -6 -6 -6 -6 -5 -5 -5 -5 -4 -4 -4 -4 -4 -3 -3 -3 -3 -2 -2 -2 -1 -1 -1 ------------ Run | Yrd Mat Sub Rec Scr Fac Ext Cet Arc Hub Fac Upp Upp War Pro Fac Upp Upp Zhi Pro Res Arm Lab Res Qua Frg Acc Com Ac0 Used RIF Installer . | . . . . . . . . . . . . . . . . . . . . . . . . . . . . . Robots Hacked . | . . . . . . . . . . . . . . . . . . . . . . . . . . . . . Non-combat . | . . . . . . . . . . . . . . . . . . . . . . . . . . . . . Combat . | . . . . . . . . . . . . . . . . . . . . . . . . . . . . . Robot Hacks Applied . | . . . . . . . . . . . . . . . . . . . . . . . . . . . . . Relay Couplers Released 3 | . . . . . . . . . . . . . . . . . . . . . . . . . 3 . . . Machine Destruction 3 | . . . . . . . . . . . . . . . . . . . . . . . . . 3 . . . Fabnet Peak Effective % . | . . . . . . . . . . . . . . . . . . . . . . . . . . . . . Robots Rewired 24 | . . . . . . 15 . . . . . . 5 . . . . . . . 4 . . . . . . . Allies Hacked . | . . . . . . . . . . . . . . . . . . . . . . . . . . . . . Hacks Repelled . | . . . . . . . . . . . . . . . . . . . . . . . . . . . . . Allies | -11 -10 -10 -8 -8 -6 -6 -6 -6 -6 -5 -5 -5 -5 -4 -4 -4 -4 -4 -3 -3 -3 -3 -2 -2 -2 -1 -1 -1 -------- Run | Yrd Mat Sub Rec Scr Fac Ext Cet Arc Hub Fac Upp Upp War Pro Fac Upp Upp Zhi Pro Res Arm Lab Res Qua Frg Acc Com Ac0 Total Allies 46 | . . . . . . 29 5 . . . . . 5 . 3 . . . . . 4 . . . . . . . Largest Group 25 | . . . . . . 25 25 18 17 . . . 5 . 3 . . . . . 4 . . . . . . . Highest-Rated Group 1079 | . . . . . . 856 1079 859 831 . . . 275 . 141 . . . . . 256 . . . . . . . Highest-Rated Ally 159 | . . . . . . 159 159 96 96 . . . 68 . 47 . . . . . 64 . . . . . . . Total Orders 51 | . . . . 1 . . 1 . 5 1 . . 11 . . . . . . . . . . . . . 6 26 STAY 12 | . . . . . . . 1 . 3 . . . 7 . . . . . . . . . . . . . . 1 FOLLOW 5 | . . . . . . . . . . . . . 4 . . . . . . . . . . . . . 1 . EXPLORE 1 | . . . . . . . . . 1 . . . . . . . . . . . . . . . . . . . RETURN 33 | . . . . 1 . . . . 1 1 . . . . . . . . . . . . . . . . 5 25 Ally Attacks 551 | . . . . . . 91 80 . 205 . . . . . 25 . . . . . . . . . . . 49 101 Total Damage 19466 | . . . . . . 1645 1966 . 5769 . . . . . 536 . . . . . . . . . . . 4027 5523 Kills 69 | . . . . . . 15 10 . 36 . . . . . 3 . . . . . . . . . . . . 5 Allies Corrupted 4 | . . . . . . . . . 1 . . . . . . . . . . . 2 . . . . . 1 . Allies Melted 1 | . . 1 . . . . . . . . . . . . . . . . . . . . . . . . . . Intel | -11 -10 -10 -8 -8 -6 -6 -6 -6 -6 -5 -5 -5 -5 -4 -4 -4 -4 -4 -3 -3 -3 -3 -2 -2 -2 -1 -1 -1 ------- Run | Yrd Mat Sub Rec Scr Fac Ext Cet Arc Hub Fac Upp Upp War Pro Fac Upp Upp Zhi Pro Res Arm Lab Res Qua Frg Acc Com Ac0 Active Infowar (turns) 26003 | 29 1035 3597 58 . 370 1658 693 153 1219 107 1417 1467 1661 1007 1301 633 932 218 601 579 2009 455 356 636 1393 340 1283 796 Optics 15100 | . . . . . 370 1658 693 13 1219 . . . . . 1123 633 932 218 601 579 2009 248 356 636 1393 340 1283 796 Sensors 8987 | . . . . . . . . . . . 1060 1288 1396 735 1187 594 849 218 569 579 512 . . . . . . . A.S.S. 284 | . . . . . . . . . . . . . . . . . . . . . . . . . . 132 152 . IFF 2044 | . . . . . 369 451 623 153 448 . . . . . . . . . . . . . . . . . . . Terrain 61 | 24 37 . . . . . . . . . . . . . . . . . . . . . . . . . . . Structural 3750 | . . . . . . . . . . . . . . . . . 35 . . 26 1733 455 185 522 452 324 18 . Seismic 4719 | 29 1035 3597 58 . . . . . . . . . . . . . . . . . . . . . . . . . Cloaking 9077 | . . . . . . . . . . . . . 267 407 1198 595 814 218 564 578 1000 327 249 299 1360 340 861 . Jamming 13709 | . . . . . . . . . . 107 1417 1467 1400 964 1301 633 932 218 601 579 2009 455 356 636 634 . . . Robot Analysis Total 6 | . 1 . 1 . . . . . . . . . . . . . . 4 . . . . . . . . . . Derelict Logs Recovered 13 | . . 1 . 5 . . . . . . 1 2 . 2 . 2 . . . . . . . . . . . . Drone Launches 42 | . . . . 1 . . . . 3 1 . . . . . . . . . . . . . . . . 9 28 Drone Recoveries 37 | . . . . 1 . . . . 1 1 . . . . . . . . . . . . . . . . 8 26 Exploration | -11 -10 -10 -8 -8 -6 -6 -6 -6 -6 -5 -5 -5 -5 -4 -4 -4 -4 -4 -3 -3 -3 -3 -2 -2 -2 -1 -1 -1 ------------- Run | Yrd Mat Sub Rec Scr Fac Ext Cet Arc Hub Fac Upp Upp War Pro Fac Upp Upp Zhi Pro Res Arm Lab Res Qua Frg Acc Com Ac0 Turns Passed 32337 | 131 1035 3597 1382 2598 372 1658 693 153 2487 1147 1417 1467 1661 1007 1301 633 932 218 601 579 2009 455 356 636 1393 340 1283 796 Spaces Moved 20874 | 58 547 1331 544 1594 194 742 276 49 654 542 696 814 907 498 924 521 731 168 412 444 1056 398 719 878 1972 643 1058 1504 Core 234 | 4 . . . 230 . . . . . . . . . . . . . . . . . . . . . . . . Treads 7597 | 54 547 1322 442 520 . 223 276 49 654 542 696 814 907 498 53 . . . . . . . . . . . . . Legs 4261 | . . . . . . . . . . . . . . . 871 521 731 168 412 444 1056 58 . . . . . . Wheels 1668 | . . 9 102 844 194 519 . . . . . . . . . . . . . . . . . . . . . . Hover 7114 | . . . . . . . . . . . . . . . . . . . . . . 340 719 878 1972 643 1058 1504 Flight . | . . . . . . . . . . . . . . . . . . . . . . . . . . . . . Fastest Speed 17 | 50 160 130 140 50 130 130 160 160 160 160 160 160 160 160 104 112 112 112 120 120 120 29 27 21 17 33 33 33 Average Speed 113 | 152 160 228 242 157 137 145 161 160 160 160 160 160 160 160 114 112 112 116 120 120 128 69 27 27 30 33 33 33 Slowest Speed 460 | 160 160 250 460 400 145 243 163 160 160 160 160 160 240 160 160 112 112 127 120 120 200 127 29 28 86 33 90 33 Overloaded Moves 13 | . . . . . . . . . . . . . . . . . . . . . . . . 2 11 . . . Propulsion Burnouts . | . . . . . . . . . . . . . . . . . . . . . . . . . . . . . Robots Hopped . | . . . . . . . . . . . . . . . . . . . . . . . . . . . . . Potential Cave-ins 2 | . . . . . . . . . . . . . . . 2 . . . . . . . . . . . . . Cave-ins Triggered 1 | . . . . . . . . . 1 . . . . . . . . . . . . . . . . . . . Teleports 4 | . . . . . . . . . . . . . . . . . . . . . 1 . . . 1 . 1 1 Exploration Rate (%) 58 | 6 76 93 90 87 8 86 60 58 63 20 90 89 76 70 23 75 75 62 68 16 50 95 18 90 42 22 24 76 Regions Visited 28 Branch Regions 21 Pre-discovered Areas 21 | . 3 . 9 6 . . . . . . . . . . . . . 3 . . . . . . . . . . Known Exits Taken 22 | . 1 . 1 1 1 . . . 1 1 1 1 1 1 1 1 1 1 1 1 1 1 1 1 1 1 . . Unknown Exits Taken 6 | 1 . 1 . . . 1 1 1 . . . . . . . . . . . . . . . . . . 1 . Scrap Searched 30 | . . 4 . 7 . . . . . . 3 3 . 2 . 3 4 . 4 . . . . . . . . . Spaces Dug 196 | . 3 17 . . 4 17 . 2 4 8 7 2 3 7 12 5 13 . 11 1 3 . 13 11 8 38 . 7 Terrain Destroyed 1135 | . 5 22 3 . 47 45 32 6 137 117 20 60 20 69 48 9 35 . 25 1 31 . 20 15 182 44 12 130 Melee 30 | . . 4 . . . . . . . . . . . . . . . . . . . . 3 11 8 4 . . Projectile 566 | . 5 5 3 . 6 . 14 6 67 25 20 30 20 31 48 9 24 . . 1 16 . 15 3 77 3 8 130 AOE 436 | . . 13 . . 41 45 18 . 70 92 . 30 . 38 . . 11 . 25 . 9 . . . 3 37 4 . Terrain Rammed . | . . . . . . . . . . . . . . . . . . . . . . . . . . . . . Walls Destroyed . | . . . . . . . . . . . . . . . . . . . . . . . . . . . . . Machines Disabled . | . . . . . . . . . . . . . . . . . . . . . . . . . . . . . Actions | -11 -10 -10 -8 -8 -6 -6 -6 -6 -6 -5 -5 -5 -5 -4 -4 -4 -4 -4 -3 -3 -3 -3 -2 -2 -2 -1 -1 -1 --------- Run | Yrd Mat Sub Rec Scr Fac Ext Cet Arc Hub Fac Upp Upp War Pro Fac Upp Upp Zhi Pro Res Arm Lab Res Qua Frg Acc Com Ac0 Total 27774 | 76 640 1758 584 1695 273 1205 482 104 1898 728 979 924 1073 668 1107 558 803 190 501 478 1477 568 821 1173 2568 749 1939 1755 Wait 3757 | . 37 288 18 20 35 182 129 36 1084 22 233 66 40 128 42 13 13 . 60 7 83 110 11 185 117 72 725 1 Move 20845 | 57 546 1330 543 1593 193 741 275 48 654 541 695 813 906 497 923 520 730 167 411 443 1055 397 718 877 1970 642 1057 1503 Hop . | . . . . . . . . . . . . . . . . . . . . . . . . . . . . . Pick Up 303 | 1 15 19 2 41 7 4 6 . 9 20 10 2 9 2 17 1 3 3 1 5 27 4 4 11 47 4 16 13 Fast Attach 122 | 7 1 1 . 4 2 3 9 . 4 12 1 . 10 . 5 1 . 6 . 1 7 1 6 4 24 1 7 5 Attach 89 | . . . . 2 7 1 3 . 3 9 1 . 2 1 6 . . 2 . 2 10 9 1 5 16 2 5 2 Detach 46 | . . 1 . . . . 6 . 2 7 1 . 2 . 2 . . 1 . . 1 4 2 3 10 2 1 1 Swap 463 | . 7 24 7 4 2 22 12 1 32 21 9 14 10 14 24 11 10 4 18 8 54 2 19 13 64 8 31 18 Drop 316 | . 3 18 2 31 1 14 17 . 7 18 9 2 19 . 22 2 3 7 2 4 26 9 7 12 45 3 18 15 Fire 1358 | 11 29 29 6 . 26 53 25 19 99 75 19 27 34 26 61 10 44 . 9 8 197 32 46 29 175 9 66 194 Melee 158 | . . 47 5 . . . . . . . . . . . . . . . . . . . 7 34 45 6 11 3 Ram . | . . . . . . . . . . . . . . . . . . . . . . . . . . . . . Kick 4 | . . . . . . . . . . . . . . . 4 . . . . . . . . . . . . . Crush 12 | . 2 . 1 . . . . . 4 3 1 . . . 1 . . . . . . . . . . . . . Escape Stasis 60 | . . . . . . . . . . . . . . . . . . . . . 5 . . . 55 . . . Rewire 240 | . . . . . . 185 . . . . . . 41 . . . . . . . 12 . . . . . 2 . Trap 1 | . . 1 . . . . . . . . . . . . . . . . . . . . . . . . . . Miscellaneous . | . . . . . . . . . . . . . . . . . . . . . . . . . . . . . Route ------- -11/Scrapyard -10/Materials (discovered 6 exits: *Mat x3 / *Min x2 / *Sub) -10/Subcaves (discovered 4 exits: *Mat x2 / *Rec / *Scr) -8/Recycling (discovered 2 exits: Fac / *Scr) -8/Scraptown (discovered 2 exits: *Fac x2) -6/Factory (discovered 8 exits: Fac x4 / Low x2 / *Ext x2) -6/Extension (discovered 2 exits: *Fac / *Cet) -6/Cetus (discovered 2 exits: *Fac / [*Arc]) -6/Archives -6/Hub_04(d) (discovered 4 exits: *Fac x4) -5/Factory (discovered 2 exits: *Upp x2) -5/Upper Caves -5/Upper Caves (discovered 2 exits: *Fac / *War) -5/Warlord -4/Proximity Caves -4/Factory (discovered 2 exits: *Upp x2) -4/Upper Caves -4/Upper Caves -4/Zhirov -3/Proximity Caves -3/Research (discovered 6 exits: Res x3 / *Arm / Tes x2) -3/Armory -3/Lab -2/Research (discovered 2 exits: *Qua x2) -2/Quarantine (discovered 3 exits: *Acc / [*Sec] / *Frg) -2/Protoforge -1/Access -1/Command (discovered 3 exits: [Sur x2] / *Ac0) -1/Access_0 0b11 Command History --------- Turn | Location | Event 16 | -11/Scrapyard | Discovered new exit (range 16) 132 | -11/Scrapyard | Entered Materials 246 | -10/Materials | Discovered new exit (range 16) 304 | -10/Materials | Build established: Mutant 411 | -10/Materials | Discovered new exit (range 15) 450 | -10/Materials | Discovered new exit (range 7) 523 | -10/Materials | Discovered new exit (range 10) 568 | -10/Materials | Learned location of 1 exit from Storage 601 | -10/Materials | Learned location of 1 exit from Recycling 626 | -10/Materials | Learned location of Mines (-10) 639 | -10/Materials | Learned 4 Recycling zone layouts 644 | -10/Materials | Identified exit to Mines 644 | -10/Materials | Identified exit to Subcaves 644 | -10/Materials | Identified exit to Materials 646 | -10/Materials | Learned location of 1 exit from Recycling 655 | -10/Materials | Learned Storage emergency access door positions 672 | -10/Materials | Loaded intel: 27 trap records 1167 | -10/Materials | Entered Subcaves 1168 | -10/Subcaves | Approached by a straggling Scientist 1216 | -10/Subcaves | Shifting Twisted Machinery released Sub. Beam Cannon 1241 | -10/Subcaves | Shifting Twisted Machinery released Spk. Treads 1290 | -10/Subcaves | A swath of the cavern ceiling suddenly collapsed 1300 | -10/Subcaves | Shifting Twisted Machinery released Flamer 1476 | -10/Subcaves | Shifting Twisted Machinery released Sub. Laser 1522 | -10/Subcaves | Discovered new exit (range 3) 1546 | -10/Subcaves | A swath of the cavern ceiling suddenly collapsed 2117 | -10/Subcaves | Identified exit to Materials 2155 | -10/Subcaves | Build established: Scavenger-Mutant 2177 | -10/Subcaves | Visited 4L-MR0's lab 2205 | -10/Subcaves | Found Cargo Legs 2458 | -10/Subcaves | Visited Clippyterm 2465 | -10/Subcaves | Learned Factory trap positions 2504 | -10/Subcaves | Disturbed a concealed Subdweller 4497 | -10/Subcaves | Discovered new exit (range 4) 4668 | -10/Subcaves | Build established: Mutant 4764 | -10/Subcaves | Entered Recycling 4765 | -8/Recycling | Identified exit to Scraptown 4765 | -8/Recycling | Identified exit to Factory 5752 | -8/Recycling | Learned location of 1 exit from Storage 5817 | -8/Recycling | Learned location of Zion (-7) 5872 | -8/Recycling | Learned Factory trap positions 5915 | -8/Recycling | Learned location of Lower Caves (-6) 5946 | -8/Recycling | Learned Storage interactive machine intel 5969 | -8/Recycling | Learned location of 2 exits from Factory 5984 | -8/Recycling | Loaded intel: 6 recycling unit locations 6038 | -8/Recycling | Learned location of 2 exits from Lower Caves 6089 | -8/Recycling | Scanned before Scraplab entrance 6124 | -8/Recycling | Entered Scraplab 6146 | -8/Recycling | Entered Scraptown 6411 | -8/Scraptown | Visited UFD Registry 6411 | -8/Scraptown | Registered with UFD as "Fissiontorch" 6554 | -8/Scraptown | Scanned Subdweller tech in exchange for log data 6561 | -8/Scraptown | Learned Factory emergency access door positions 6564 | -8/Scraptown | Learned location of Warlord (-5) 6566 | -8/Scraptown | Learned Research terminal intel 6569 | -8/Scraptown | Learned location of 1 exit from Upper Caves 6682 | -8/Scraptown | Guru changed UFD alias to "Beamframe" 6728 | -8/Scraptown | Discovered exit to Factory (range 11) 6949 | -8/Scraptown | Received an X-ray algorithm 7318 | -8/Scraptown | Visited Shadow of the Wyrm 7360 | -8/Scraptown | Visited Bundlers 7602 | -8/Scraptown | Visited Spacefarers 7615 | -8/Scraptown | Visited SPCMW 7638 | -8/Scraptown | Visited Red Mages 7656 | -8/Scraptown | Visited The Evicted 7841 | -8/Scraptown | Visited Observation Area 7877 | -8/Scraptown | Visited Derelict Rescue Squad 7914 | -8/Scraptown | Visited Curators Association 8007 | -8/Scraptown | Delivered Scrap Shield to a Scientist 8075 | -8/Scraptown | Visited Scrap Suit Storage 8091 | -8/Scraptown | Visited Abandonware Association 8106 | -8/Scraptown | Learned abandonware demo "HACKBUD.EXE" 8106 | -8/Scraptown | Learned abandonware demo "POISON.EXE" 8129 | -8/Scraptown | Visited Infowarlord's Domain 8138 | -8/Scraptown | Found Exp. Signal Interpreter 8163 | -8/Scraptown | Visited Scrapoid Pod Storage 8187 | -8/Scraptown | Visited Botcube Research 8210 | -8/Scraptown | Visited Cartography Club 8299 | -8/Scraptown | Learned location of Upper Caves (-4) 8299 | -8/Scraptown | Learned location of Proximity Caves (-6) 8299 | -8/Scraptown | Learned 16 Factory zone layouts 8299 | -8/Scraptown | Learned 20 Factory zone layouts 8299 | -8/Scraptown | Learned 12 Research zone layouts 8299 | -8/Scraptown | Learned 16 Research zone layouts 8299 | -8/Scraptown | Learned 8 Lower Caves zone layouts 8299 | -8/Scraptown | Learned 16 Lower Caves zone layouts 8299 | -8/Scraptown | Learned 20 Lower Caves zone layouts 8299 | -8/Scraptown | Learned 12 Upper Caves zone layouts 8299 | -8/Scraptown | Learned 20 Upper Caves zone layouts 8299 | -8/Scraptown | Learned 24 Upper Caves zone layouts 8299 | -8/Scraptown | Learned location of 2 exits from Lower Caves 8299 | -8/Scraptown | Learned location of 3 exits from Lower Caves 8299 | -8/Scraptown | Learned location of 2 exits from Proximity Caves 8332 | -8/Scraptown | Found Deep Structural Scanner 8427 | -8/Scraptown | Found Botcube 8464 | -8/Scraptown | Found Scrapoid Pod 8586 | -8/Scraptown | Discovered exit to Factory (range 5) 8677 | -8/Scraptown | Met Optimus 8677 | -8/Scraptown | Accepted into 0bPrime 8744 | -8/Scraptown | Entered Factory 8744 | -6/Factory | Evolved 8 slots: Power x1, Propulsion x2, Utility x4, Weapon x1 8745 | -6/Factory | Identified exit to Lower Caves 8745 | -6/Factory | Identified exit to Extension 8746 | -6/Factory | Identified exit to Factory 8748 | -6/Factory | Loaded intel: 93 trap records 9116 | -6/Factory | Entered Extension 9314 | -6/Extension | Build established: Tank 9615 | -6/Extension | Rescued a captive Derelict 9616 | -6/Extension | Rescued a captive Derelict 9632 | -6/Extension | Door terminal overloaded 9633 | -6/Extension | Rescued a captive Derelict 9634 | -6/Extension | Rescued a captive Derelict 9677 | -6/Extension | Build established: Scavenger-Tank 9805 | -6/Extension | Rescued a captive Derelict 9806 | -6/Extension | Rescued a captive Derelict 10168 | -6/Extension | Build established: Commander-Tank 10171 | -6/Extension | Spotted B-75 Beast 10184 | -6/Extension | Destroyed B-75 Beast 10187 | -6/Extension | Spotted B-75 Beast 10209 | -6/Extension | Allies destroyed B-75 Beast 10303 | -6/Extension | Rescued a captive Derelict 10304 | -6/Extension | Rescued a captive Derelict 10444 | -6/Extension | Rescued a captive Derelict 10444 | -6/Extension | Rescued a captive Derelict 10466 | -6/Extension | Rescued A7 10517 | -6/Extension | Rescued a captive Derelict 10518 | -6/Extension | Rescued a captive Derelict 10531 | -6/Extension | Rescued a captive Derelict 10668 | -6/Extension | Discovered exit to Factory (range 10) 10670 | -6/Extension | Discovered new exit (range 6) 10774 | -6/Extension | Entered Cetus 10774 | -6/Cetus | Accompanied by 25 allies (A7) 10779 | -6/Cetus | Acquired a Cetus Manufacturing Module code from A7 10780 | -6/Cetus | Spotted Cetus Guard 10780 | -6/Cetus | Spotted Cetus Guard 10784 | -6/Cetus | Spotted Cetus Guard 10784 | -6/Cetus | Spotted Cetus Guard 10790 | -6/Cetus | Allies destroyed Cetus Guard 10790 | -6/Cetus | Allies destroyed Cetus Guard 10805 | -6/Cetus | Allies destroyed Cetus Guard 10808 | -6/Cetus | Allies destroyed Cetus Guard 10830 | -6/Cetus | System corruption reached 10% 10839 | -6/Cetus | Lost 6 allies 10892 | -6/Cetus | Started Cetus Manufacturing Module 10906 | -6/Cetus | Discovered new exit (range 22) 10917 | -6/Cetus | Manufactured an Enhanced Grunt 10937 | -6/Cetus | Spotted Cetus Guard 10939 | -6/Cetus | Spotted Cetus Guard 10942 | -6/Cetus | Manufactured an Enhanced Grunt 10942 | -6/Cetus | Spotted Cetus Guard 10944 | -6/Cetus | Discovered exit to Factory (range 22) 10945 | -6/Cetus | Spotted Cetus Guard 10952 | -6/Cetus | Attached CPS modules to Cetus Guard. 10954 | -6/Cetus | Attached CPS modules to Cetus Guard. 10957 | -6/Cetus | Allies destroyed Cetus Guard 10957 | -6/Cetus | Attached CPS modules to Cetus Guard. 10962 | -6/Cetus | Allies destroyed Cetus Guard 10967 | -6/Cetus | Manufactured an Enhanced Grunt 10970 | -6/Cetus | Allies destroyed Cetus Guard 10975 | -6/Cetus | Allies destroyed Cetus Guard 10988 | -6/Cetus | Met Revision 17 10992 | -6/Cetus | Manufactured an Enhanced Grunt 11001 | -6/Cetus | Lost 3 allies 11017 | -6/Cetus | Manufactured an Enhanced Grunt 11098 | -6/Cetus | Attached CPS modules to A7. 11264 | -6/Cetus | Murdered A7 11270 | -6/Cetus | Found Prototype Protection 11270 | -6/Cetus | Identified Med. Regenerative Plating 11278 | -6/Cetus | Extracted ID and sensor layout for unrecognized location from A7's data core 11467 | -6/Cetus | Entered Archives 11467 | -6/Archives | Accompanied by 18 allies 11557 | -6/Archives | Met Zhirov 11563 | -6/Archives | Reinforcements dispatched to Archives 11566 | -6/Archives | Discovered new exit (range 14) 11608 | -6/Archives | Reinforcements dispatched to Archives 11620 | -6/Archives | Entered Hub_04(d) 11620 | -6/Hub_04(d) | Accompanied by 17 allies 11831 | -6/Hub_04(d) | Discovered exit to Factory (range 5) 11841 | -6/Hub_04(d) | Garrison activated, responded to threat 12015 | -6/Hub_04(d) | Discovered exit to Factory (range 9) 12103 | -6/Hub_04(d) | Discovered exit to Factory (range 10) 12115 | -6/Hub_04(d) | Garrison activated, responded to threat 12191 | -6/Hub_04(d) | Lost 4 allies 12401 | -6/Hub_04(d) | Build established: Scavenger-Tank 12501 | -6/Hub_04(d) | Discovered exit to Factory (range 17) 12512 | -6/Hub_04(d) | Network Hub disabled 12670 | -6/Hub_04(d) | First assault squad dispatched 12797 | -6/Hub_04(d) | Destroyed 17 combat bots 12839 | -6/Hub_04(d) | Crushed by falling debris 13276 | -6/Hub_04(d) | Network Hub disabled 14107 | -6/Hub_04(d) | Entered Factory 14107 | -5/Factory | Evolved 2 slots: Propulsion x1, Utility x1 14108 | -5/Factory | Identified exit to Upper Caves 14109 | -5/Factory | Loaded intel: 101 trap records 14142 | -5/Factory | Central database locked down 14584 | -5/Factory | Destroyed 10 combat bots 14775 | -5/Factory | Repaired Centrium Heavy Treads? 14840 | -5/Factory | Found Prototype Launcher 14840 | -5/Factory | Identified Mni. Smartbomb Launcher 15007 | -5/Factory | First assault squad dispatched 15071 | -5/Factory | Cargo convoy interrupted 15128 | -5/Factory | Destroyed 13 combat bots 15133 | -5/Factory | Found Exp. Signal Interpreter 15136 | -5/Factory | Found Prototype Hackware 15139 | -5/Factory | Found PL-3XN's Ring of Power 15145 | -5/Factory | Found Prototype Device 15145 | -5/Factory | Identified Exp. Transmission Jammer 15154 | -5/Factory | Found Exp. Transmission Jammer 15197 | -5/Factory | Found Exp. Signal Interpreter 15254 | -5/Factory | Entered Upper Caves 15255 | -5/Upper Caves | Identified exit to Upper Caves 15256 | -5/Upper Caves | UFD Scientist delivered a prototype 15261 | -5/Upper Caves | Found Prototype Protection 15401 | -5/Upper Caves | Identified Enh. Scrap Shield 15454 | -5/Upper Caves | Encountered a Warlord checkpoint 15635 | -5/Upper Caves | Attracted the attention of an 0b10 checkpoint 15969 | -5/Upper Caves | Build established: Scavenger-Skirmisher 16671 | -5/Upper Caves | Entered another Upper Caves area 16672 | -5/Upper Caves | Identified exit to Factory 16673 | -5/Upper Caves | Identified exit to Warlord 16743 | -5/Upper Caves | Learned Factory trap positions 16954 | -5/Upper Caves | Learned Factory trap positions 17293 | -5/Upper Caves | Attracted the attention of an 0b10 checkpoint 17443 | -5/Upper Caves | Found Alien Artifact 18055 | -5/Upper Caves | Attracted the attention of an 0b10 base 18097 | -5/Upper Caves | Learned Extension emergency access door positions 18097 | -5/Upper Caves | Learned 8 Research zone layouts 18138 | -5/Upper Caves | Entered Warlord 18139 | -5/Warlord | Identified exit to Proximity Caves 18627 | -5/Warlord | Build established: Commander-Skirmisher 18871 | -5/Warlord | Visited the Vortex Lab 18878 | -5/Warlord | Warlord's base attacked by MAIN.C 18888 | -5/Warlord | Found Prototype Energy Gun 18889 | -5/Warlord | Identified Vortex Shotgun 19144 | -5/Warlord | Murdered 3 allies 19228 | -5/Warlord | Warlord forces counterattacked 19330 | -5/Warlord | Found Prototype Device 19330 | -5/Warlord | Identified Exp. Cloaking Device 19360 | -5/Warlord | Found Prototype Reactor 19428 | -5/Warlord | Build established: Scavenger-Skirmisher 19553 | -5/Warlord | Warlord base infiltrated, sounded retreat 19599 | -5/Warlord | Lost 3 allies 19653 | -5/Warlord | Identified Vortex Chain Reactor 19684 | -5/Warlord | Rebuked by Warlord 19725 | -5/Warlord | Spotted Striker 19763 | -5/Warlord | Lost 4 allies 19799 | -5/Warlord | Entered Proximity Caves 19821 | -4/Proximity Caves | Lost 11 allies 19827 | -4/Proximity Caves | Build established: Scavenger-Tank 19885 | -4/Proximity Caves | Learned Research garrison access intel 19924 | -4/Proximity Caves | Learned Research stockpile data 19995 | -4/Proximity Caves | Attracted the attention of an 0b10 base 20335 | -4/Proximity Caves | Build established: Scavenger-Skirmisher 20650 | -4/Proximity Caves | Spotted B-86 Titan 20806 | -4/Proximity Caves | Entered Factory 20806 | -4/Factory | Evolved 2 slots: Propulsion x1, Utility x1 20807 | -4/Factory | Identified exit to Upper Caves 20808 | -4/Factory | Loaded intel: 82 trap records 20913 | -4/Factory | Attached Cargo Legs, gained temporary slots: Utility x2 21046 | -4/Factory | Identified Exp. System Shield 21096 | -4/Factory | Repaired Adv. KE Penetrator 21179 | -4/Factory | Spotted B-86 Titan 21281 | -4/Factory | Destroyed B-86 Titan 21620 | -4/Factory | Build established: Infiltrator-Skirmisher 21686 | -4/Factory | Found Prototype Hackware 21686 | -4/Factory | Identified Exp. Hacking Suite 22107 | -4/Factory | Entered Upper Caves 22108 | -4/Upper Caves | Identified exit to Upper Caves 22579 | -4/Upper Caves | Learned Research security intel 22740 | -4/Upper Caves | Entered another Upper Caves area 23031 | -4/Upper Caves | Spotted B-86 Titan 23583 | -4/Upper Caves | Discovered new exit (range 13) 23597 | -4/Upper Caves | Identified exit to Zhirov 23672 | -4/Upper Caves | Entered Zhirov 23672 | -4/Zhirov | Discovered new exit (range 3) 23677 | -4/Zhirov | Identified exit to Proximity Caves 23720 | -4/Zhirov | Learned location of Quarantine (-2) 23754 | -4/Zhirov | Found Alien Artifact 23754 | -4/Zhirov | Identified Integrated Reactor 23754 | -4/Zhirov | Installed Integrated Reactor, increased core energy generation (+10) 23840 | -4/Zhirov | Found Alien Artifact 23890 | -4/Zhirov | Entered Proximity Caves 23891 | -3/Proximity Caves | Identified exit to Research 24424 | -3/Proximity Caves | Found Mni. Smartbomb Launcher 24491 | -3/Proximity Caves | Entered Research 24491 | -3/Research | Evolved 2 slots: Utility x2 24492 | -3/Research | Identified exit to Testing 24493 | -3/Research | Identified exit to Armory 24493 | -3/Research | Identified exit to Research 24496 | -3/Research | Loaded intel: 24 terminal locations 24497 | -3/Research | Loaded intel: 4 garrison access locations 24691 | -3/Research | Revision forces began assault on 0b10 24829 | -3/Research | Met up with Revision 17++ 25043 | -3/Research | Central database locked down 25070 | -3/Research | Entered Armory 25788 | -3/Armory | Found Prototype Device 25788 | -3/Armory | Identified Exp. Focal Shield 25885 | -3/Armory | Build established: Infiltrator-Gunner 26566 | -3/Armory | Lost 4 allies 26570 | -3/Armory | First assault squad dispatched 26729 | -3/Armory | Spotted Armor Guard 26729 | -3/Armory | Spotted Armor Guard 26798 | -3/Armory | Destroyed Armor Guard 26804 | -3/Armory | Destroyed Armor Guard 26808 | -3/Armory | Found Prototype Device 26808 | -3/Armory | Identified Exp. Weapon Cycler 26852 | -3/Armory | Spotted Armor Guard 26852 | -3/Armory | Spotted Armor Guard 26862 | -3/Armory | Destroyed Armor Guard 26869 | -3/Armory | Destroyed Armor Guard 26907 | -3/Armory | Breached Obliterator storage 26914 | -3/Armory | Found Disassembled Obliterator 26925 | -3/Armory | Found PL-3XN's Ring of Power 26950 | -3/Armory | System corruption reached 10% 27002 | -3/Armory | Identified Transdimensional Reconstructor 27002 | -3/Armory | Warped through subspace to slip node 27002 | -3/Armory | Discovered new exit (range 1) 27002 | -3/Armory | Identified exit to Lab 27015 | -3/Armory | Found Gamma Bomb Array 27079 | -3/Armory | Entered Lab 27079 | -3/Lab | Discovered exit to Research (range 9) 27093 | -3/Lab | Hidden lab's door opened automatically 27093 | -3/Lab | Sensor layout match revealed 27094 | -3/Lab | Gained access to the hidden lab's interior 27240 | -3/Lab | Found Transdimensional Reconstructor 27246 | -3/Lab | Found Alien Artifact 27249 | -3/Lab | Identified Integrated Dissipator 27249 | -3/Lab | Installed Integrated Dissipator, increased core heat dissipation (+20) 27255 | -3/Lab | Found Alien Artifact 27255 | -3/Lab | Identified Core Expander 27255 | -3/Lab | Installed Core Expander, added new Power slot 27320 | -3/Lab | Found Prototype Hackware 27476 | -3/Lab | Found Prototype Energy Cannon 27534 | -3/Lab | Entered Research 27534 | -2/Research | Evolved 2 slots: Propulsion x1, Utility x1 27550 | -2/Research | Identified Quantum Router 27678 | -2/Research | Identified exit to Quarantine 27840 | -2/Research | Found Prototype Device 27840 | -2/Research | Identified Thermal Barrier 27884 | -2/Research | Spotted B-90 Cyclops 27890 | -2/Research | Entered Quarantine 27891 | -2/Quarantine | Spotted Alpha 7 27933 | -2/Quarantine | Central database locked down 27948 | -2/Quarantine | Build established: Scavenger-Sprinter 27960 | -2/Quarantine | Found Alien Slashing Weapon 27960 | -2/Quarantine | Identified Sigix Broadsword 27990 | -2/Quarantine | Cryocooling Duct disabled 28005 | -2/Quarantine | Ambient heat levels rising (+20) 28005 | -2/Quarantine | Non-combat units ordered to evacuate 28056 | -2/Quarantine | Discovered new exit (range 10) 28163 | -2/Quarantine | Identified exit to Access 28199 | -2/Quarantine | Found Alien Artifact 28201 | -2/Quarantine | Identified Subatomic Replicator 28201 | -2/Quarantine | Used Subatomic Replicator to replicate PL-3XN's Ring of Power 28204 | -2/Quarantine | Assembled PL-3XN's Obliterator 28261 | -2/Quarantine | System corruption reached 10% 28334 | -2/Quarantine | Spotted Fortress 28353 | -2/Quarantine | Discovered new exit (range 6) 28353 | -2/Quarantine | Discovered new exit (range 6) 28355 | -2/Quarantine | Identified exit to Protoforge 28526 | -2/Quarantine | Entered Protoforge 28592 | -2/Protoforge | Spotted B-90 Cyclops 28605 | -2/Protoforge | Spotted Hotshot 28633 | -2/Protoforge | Discovered exit to Access (range 12) 28638 | -2/Protoforge | Identified Dimensional Node Initializer 28638 | -2/Protoforge | Initialized slip node 28658 | -2/Protoforge | Spotted Hotshot 28658 | -2/Protoforge | Spotted Hotshot 28658 | -2/Protoforge | Spotted Hotshot 28680 | -2/Protoforge | Identified Warp Cannon 28685 | -2/Protoforge | Garrison activated, responded to threat 28736 | -2/Protoforge | Found Prototype Device 28738 | -2/Protoforge | Spotted Immortal 28738 | -2/Protoforge | Spotted Immortal 28742 | -2/Protoforge | Spotted Decapitator 28742 | -2/Protoforge | Spotted Decapitator 28742 | -2/Protoforge | Spotted Decapitator 28742 | -2/Protoforge | Spotted Decapitator 28750 | -2/Protoforge | Destroyed Decapitator 28750 | -2/Protoforge | Destroyed Decapitator 28753 | -2/Protoforge | Destroyed Decapitator 28753 | -2/Protoforge | Destroyed Decapitator 28769 | -2/Protoforge | Destroyed Immortal 28776 | -2/Protoforge | First assault squad dispatched 28801 | -2/Protoforge | Destroyed Immortal 28834 | -2/Protoforge | Found Cep. Rapid Grenade Launcher 28842 | -2/Protoforge | Superfortress began startup sequence 28876 | -2/Protoforge | Found Cep. Gyrokinetic System 28878 | -2/Protoforge | Found Cep. Combat Aerolev Unit 28899 | -2/Protoforge | Found Cep. Melee Reflex Suite 28972 | -2/Protoforge | Forge Plexus network access discovered 28991 | -2/Protoforge | Found Cep. Zero-point Core 28993 | -2/Protoforge | Spotted V216-z 28994 | -2/Protoforge | Spotted V379-s 28994 | -2/Protoforge | Spotted V809-i 28994 | -2/Protoforge | Spotted V608-k 28995 | -2/Protoforge | Found Cep. Zero-point Core 29036 | -2/Protoforge | Spotted Decapitator 29036 | -2/Protoforge | Spotted V085-p 29037 | -2/Protoforge | Spotted Decapitator 29050 | -2/Protoforge | Destroyed 9 combat bots 29050 | -2/Protoforge | Found Cep. Antigrav Storage Unit 29052 | -2/Protoforge | Found Cep. Chromion Battery 29053 | -2/Protoforge | Found Cep. Matter Streamer 29056 | -2/Protoforge | Found Cep. Chromion Battery 29060 | -2/Protoforge | Found Cep. NT7 Matterbank 29067 | -2/Protoforge | Found Cep. Chromion Battery 29093 | -2/Protoforge | Identified Crosscalibrator 29098 | -2/Protoforge | Found Faulty Cep. Gyrokinetic System 29102 | -2/Protoforge | Found Cep. Combat Aerolev Unit 29107 | -2/Protoforge | Found Faulty Cep. Gyrokinetic System 29142 | -2/Protoforge | Spotted V706-z 29142 | -2/Protoforge | Spotted V600-g 29142 | -2/Protoforge | Spotted V836-x 29157 | -2/Protoforge | Spotted V131-n 29166 | -2/Protoforge | Scanned by Researcher 29176 | -2/Protoforge | Destroyed V836-x 29182 | -2/Protoforge | Destroyed V706-z 29184 | -2/Protoforge | Found Cep. Energy Mantle 29187 | -2/Protoforge | Found Cep. RG22 Armor 29204 | -2/Protoforge | Spotted Decapitator 29204 | -2/Protoforge | Spotted Decapitator 29204 | -2/Protoforge | Spotted Decapitator 29214 | -2/Protoforge | Lost 8 parts (1p1n4u2w) 29223 | -2/Protoforge | Destroyed V131-n 29234 | -2/Protoforge | Destroyed V600-g 29250 | -2/Protoforge | Found Cep. Reaction Jets 29252 | -2/Protoforge | Found Cep. RG22 Armor 29267 | -2/Protoforge | Found Cep. Energy Mantle 29310 | -2/Protoforge | Destroyed Decapitator 29314 | -2/Protoforge | Destroyed Decapitator 29314 | -2/Protoforge | Destroyed Decapitator 29335 | -2/Protoforge | Found Cep. Plasma Driver 29379 | -2/Protoforge | Found Cep. Combat Aerolev Unit 29380 | -2/Protoforge | Found Cep. Heavy Railcannon 29382 | -2/Protoforge | Spotted V150-g 29404 | -2/Protoforge | Destroyed V150-g 29409 | -2/Protoforge | Found Cep. Combat Aerolev Unit 29415 | -2/Protoforge | Found Cep. Combat Aerolev Unit 29416 | -2/Protoforge | Found Faulty Cep. Plasma Driver 29420 | -2/Protoforge | Found Cep. Lightning Penetrator 29437 | -2/Protoforge | Found Cep. Heavy Railcannon 29457 | -2/Protoforge | Found Faulty Cep. Disintegration Ray 29458 | -2/Protoforge | Found Faulty Cep. Disintegration Ray 29526 | -2/Protoforge | Destroyed 8 combat bots 29544 | -2/Protoforge | Spotted Immortal 29588 | -2/Protoforge | Destroyed Immortal 29601 | -2/Protoforge | Found Cep. Weapon Articulator 29603 | -2/Protoforge | Found Mni. Quantum Capacitor 29611 | -2/Protoforge | Found Exp. Kinecellerator 29656 | -2/Protoforge | Found Exp. Active Sensor Suite 29666 | -2/Protoforge | Spotted AP7-3 29668 | -2/Protoforge | Destroyed AP7-3 29669 | -2/Protoforge | Spotted AP7-3 29674 | -2/Protoforge | Destroyed AP7-3 29714 | -2/Protoforge | Found Cep. Cloak Mesh 29716 | -2/Protoforge | Found Prototype Device 29716 | -2/Protoforge | Identified Cep. Thermoelectric Network 29720 | -2/Protoforge | Found Faulty Cep. Thermoelectric Network 29731 | -2/Protoforge | Found Cep. Impact Drone Bay 29733 | -2/Protoforge | Found Cep. Cloak Mesh 29737 | -2/Protoforge | Found Faulty Cep. Core Analysis Suite 29739 | -2/Protoforge | Found Faulty Cep. Core Analysis Suite 29891 | -2/Protoforge | Additional patrols dispatched to research labs 29904 | -2/Protoforge | Found Transdimensional Reconstructor 29904 | -2/Protoforge | Warped through subspace to slip node 29919 | -2/Protoforge | Entered Access 29919 | -1/Access | Evolved 2 slots: Propulsion x1, Utility x1 29971 | -1/Access | Spotted B-99 Colossus 30159 | -1/Access | Discovered new exit (range 8) 30169 | -1/Access | First assault squad dispatched 30201 | -1/Access | Unchained authorized (QV-33N) 30237 | -1/Access | Identified exit to Command 30254 | -1/Access | High security lockdown imminent 30259 | -1/Access | Entered Command 30335 | -1/Command | Build established: Ninja 30393 | -1/Command | Spotted M Guard 30394 | -1/Command | Destroyed M Guard 30395 | -1/Command | Spotted M Guard 30396 | -1/Command | Destroyed M Guard 30397 | -1/Command | Spotted Combat Programmer 30397 | -1/Command | Spotted Combat Programmer 30401 | -1/Command | Destroyed Combat Programmer 30403 | -1/Command | Destroyed Combat Programmer 30403 | -1/Command | All MAIN.C guards destroyed 30412 | -1/Command | Found Prototype Protection 30412 | -1/Command | Identified Hvy. Regenerative Plating 30424 | -1/Command | Destroyed 14 combat bots 30474 | -1/Command | Met MAIN.C 30491 | -1/Command | 0b10 Conduit disabled 30501 | -1/Command | Destroyed MAIN.C Shell 30502 | -1/Command | MAIN.C activated Command garrisons 30539 | -1/Command | Destroyed MAIN.C 30541 | -1/Command | Discovered new exit (range 51) 30541 | -1/Command | Discovered new exit (range 107) 30541 | -1/Command | Extracted map data and part IDs from MAIN.C's data core 30738 | -1/Command | Spotted Striker 30818 | -1/Command | Build established: Sprinter 31258 | -1/Command | Found Exp. System Purifier 31261 | -1/Command | Found Zero-point Reactor 31263 | -1/Command | Found Zero-point Reactor 31267 | -1/Command | Found Exp. Armor Integrity Analyzer 31537 | -1/Command | Warped through subspace to slip node 31537 | -1/Command | Discovered new exit (range 4) 31542 | -1/Command | Entered Access_0 31542 | -1/Access_0 | Destroyed A8 31544 | -1/Access_0 | Met Architect 31550 | -1/Access_0 | Architect warped through subspace 31615 | -1/Access_0 | Architect warped through subspace 31621 | -1/Access_0 | A6 warped into view 31629 | -1/Access_0 | Destroyed A6 31651 | -1/Access_0 | Architect warped through subspace 31662 | -1/Access_0 | Build established: Scavenger-Sprinter 31668 | -1/Access_0 | Subspace Access Node disabled 31679 | -1/Access_0 | Architect warped through subspace 31715 | -1/Access_0 | Architect warped through subspace 31746 | -1/Access_0 | Subspace Access Node disabled 31764 | -1/Access_0 | Found Exp. Phase Shifter 31780 | -1/Access_0 | A5 warped into view 31803 | -1/Access_0 | Architect warped through subspace 31819 | -1/Access_0 | Destroyed A5 31854 | -1/Access_0 | Architect warped through subspace 31861 | -1/Access_0 | Found Exp. Phase Shifter 31890 | -1/Access_0 | Architect warped through subspace 31911 | -1/Access_0 | Architect warped through subspace 31929 | -1/Access_0 | Architect warped through subspace 31943 | -1/Access_0 | Subspace Access Node disabled 31970 | -1/Access_0 | Architect warped through subspace 32023 | -1/Access_0 | A4 warped into view 32046 | -1/Access_0 | Destroyed A4 32049 | -1/Access_0 | Destroyed A2 32067 | -1/Access_0 | Architect warped through subspace 32071 | -1/Access_0 | Extracted Singularity Gate Test 138-C access codes from A2's data core 32086 | -1/Access_0 | Found Sigix Broadsword 32090 | -1/Access_0 | Architect warped through subspace 32113 | -1/Access_0 | Subspace Access Node disabled 32164 | -1/Access_0 | Destroyed Architect 32165 | -1/Access_0 | Architect triggered a singularity event 32170 | -1/Access_0 | Singularity Gate disabled 32186 | -1/Access_0 | Found Sigix Corpse 32235 | -1/Access_0 | Extracted unknown sensor trigger ID from Architect's data core 32237 | -1/Access_0 | Found Prototype Hackware 32237 | -1/Access_0 | Identified Architect God Chip A 32239 | -1/Access_0 | Found Alien Energy Gun 32239 | -1/Access_0 | Identified Modified Sigix Sheargun 32244 | -1/Access_0 | Found Hpw. Transdimensional Reconstructor 32281 | -1/Access_0 | A3 warped into view 32301 | -1/Access_0 | Destroyed A3 32306 | -1/Access_0 | Found Spectral Analyzer 32308 | -1/Access_0 | Found Prototype Ballistic Gun 32308 | -1/Access_0 | Identified A3's Sniper Rifle 32333 | -1/Access_0 | Warped through subspace to slip node 32333 | -1/Access_0 | Discovered new exit (range 8) 32338 | *** | Establishing 0b11! Last Messages --------------- 32292_ HV Slug penetrates Wall. 32293_ Plasma Slug penetrates A3. 32295_ Destroyed Lgt. Quantum Reactor. 32295_ HV Slug penetrates Wall. 32297_ Plasma Slug penetrates A3. 32298_ HV Slug penetrates Wall. 32299_ Plasma Slug penetrates A3. 32301_ A3: "How even..." 32301_ A3 destroyed. 32306_ Discarded Exp. Optical Array. 32307_ Acquired 20 matter. 32308_ Acquired Prototype Ballistic Gun. 32308_ Identified A3's Sniper Rifle. 32310_ Acquired Cep. Plasma Driver. 32311_ Dropped Com. HERF Cannon. 32312_ Acquired A3's Sniper Rifle. 32313_ Acquired 20 matter. 32314_ Acquired 10 matter. 32333_ Warped through subspace, drawn to slip node. 32333_ EXIT=FOUND Map ----- +----------------------------------------------------+ | | | | | | | | | | | | | | | | | | | | | | | | | | | | | | | | | ?????????????????????????????????????????????????? | | ?????????????????????????????????????????????????? | | ?????????????????????????????????????????????????? | | ?????????????????????????????????????????????????? | | ?????????????????????????????????????????????????? | | ?????????????????????????????????????????????????? | | ????????????????????????###??????????????????????? | | ???????????????????????## ##?????????????????????? | | ???????????????????????# #?????????????????????? | | ???????????????????????# @ #?????????????????????? | | ??????????????????????## #?????????????????????? | | ??????????????????????# #?????????????????????? | | ??????????????????????# ##?????????????????????? | | ??????????????????????## #?????????????????????? | | ??????????????????????# #?????????????????????? | | ??????????????????????# ##?????????????????????? | | ??????????????????????# < #?????????????????????? | | ??????????????????????# ##?????????????????????? | | ??????????????????????## #??????????????????????? | | ???????????????????????####??????????????????????? | | ?????????????????????????????????????????????????? | | ?????????????????????????????????????????????????? | | ?????????????????????????????????????????????????? | | ?????????????????????????????????????????????????? | | ?????????????????????????????????????????????????? | | ?????????????????????????????????????????????????? | | ?????????????????????????????????????????????????? | | ?????????????????????????????????????????????????? | | ?????????????????????????????????????????????????? | | ?????????????????????????????????????????????????? | | ?????????????????????????????????????????????????? | | ?????????????????????????????????????????????????? | | ?????????????????????????????????????????????????? | | ?????????????????????????????????????????????????? | +----------------------------------------------------+ Best States ------------- Heat Dissipation 105 Coolant Potential 120 Energy Generation 113 Energy Capacity 1390 Matter Stores 300 Matter Capacity 300 Sight Range 24 Robot Scan Range 20 Terrain Scan Range 16 Terrain Scan Density 135 Jamming Range 22 Cloak Strength 9 Power Amplification 40 Base Temperature (-) 150 Armor Coverage 1600 Resistance: KI 30 Weapon Cycling 30 Phase Shifting 20 Evasion (%) 96 Targeting Accuracy 30 Target Analysis 8 Core Analysis 16 Armor Integrity Analysis 40 Recoil Reduction 5 Kinecelleration 66 Offensive Hacking 100 Defensive Hacking 25 Item Schematics ----------------- Adv. Sensor Array | -8/Recycling | Hacked Cmb. Linear Gravjet | -4/Factory | Scanalyzed Assault Drone Bay | -4/Zhirov | Free Exp. Heat Sink | -4/Zhirov | Free Exp. Optical Array | -4/Zhirov | Free Imp. Arc Thrower | -4/Zhirov | Free Exp. Shock Absorption System | -2/Quarantine | Archive Cld. Field Propulsion Drive | -2/Protoforge | Archive Com. Mass Driver | -2/Protoforge | Archive Exp. Matter Compressor | -2/Protoforge | Archive Adv. KE Penetrator | -2/Protoforge | Archive Cld. Nuclear Pulse Thruster | -2/Protoforge | Archive Imp. Quantum Reactor | -2/Protoforge | Archive Exp. Gyrokinetic Inverter | -2/Protoforge | Archive Exp. Q-thruster | -2/Protoforge | Archive Hvy. Dispersion Rifle | -2/Protoforge | Archive Imp. Matter Neutralizer | -2/Protoforge | Archive Exp. Core Analyzer | -2/Protoforge | Archive Cld. Linear Gravjet | -2/Protoforge | Archive Adv. Micro-nuke Launcher | -2/Protoforge | Archive Robot Schematics ------------------ M-28 Smith | -8/Recycling | Hacked T-07 Excavator | -2/Quarantine | Archive H-88 Terminator | -2/Protoforge | Archive A-15 Conveyor | -2/Protoforge | Archive K-01 Serf | -2/Protoforge | Archive O-32 Director | -2/Protoforge | Archive B-74 Champion | -2/Protoforge | Archive Fabricated ------------ Nothing Repaired ---------- Centrium Heavy Treads | 33% | -5/Factory Adv. KE Penetrator | 34% | -4/Factory Studied --------- Hvy. Plasma Cannon | -5/Factory | Hacked Hyp. Mass Driver | -4/Factory | Hacked HERF Cannon | -4/Factory | Hacked Antimatter Reactor | -4/Factory | Hacked Hvy. Phase Cannon | -4/Factory | Hacked Cmb. Linear Gravjet | -3/Research | Hacked Hyp. Railgun | -2/Research | Hacked Enh. Nova Cannon | -2/Research | Hacked Lgt. Quantum Reactor | -2/Quarantine | Hacked Quantum Reactor | -1/Access | Hacked Alien Tech Used ----------------- Integrated Reactor Transdimensional Reconstructor Integrated Dissipator Core Expander Sigix Broadsword Subatomic Replicator Dimensional Node Initializer Modified Sigix Sheargun High-powered Transdimensional Reconstructor Achievements -------------- Longdome?! Weapon Of Power Challenges ------------ None Game ------ Seed ArmorSurveybotNullifier Manual? 0 Play Time 05:57:45 Cumulative 915.8 hours Start 2025.10.25 @ 23:50:27 End 2025.10.27 @ 11:54:40 Sessions 3 Manual Loads 0 Difficulty Rogue Special Mode None Game No. 289 Rogue 287 Adventurer 2 Explorer 0 Win Type 1 Total 62 Types 19/12/14/1/1/1/11/1/0/2 Lore% 96 Gallery% 94 Achievement% 77 Wizard Run 0 Options --------- Layout 0 ASCII 0 Keyboard 1 Movement Numpad Keybinds 0 Fullscreen 1 Font 24/Smallcaps Map View 76x50 Zoom Use 0% Tactical HUD 1 Map Filters NONE Filters NONE Steam 1 RUN: 6c6c03dd-db35-4fff-98bb-12e54f977400